Workbook

Sheet sunsettable
A1: Calculation of local times of sunrise, solar noon, sunset, dawn, and dusk based on the calculation procedure by NOAA (http://www.srrb.noaa.gov/highlights/sunrise/sunrise.html)
A3: Input | C3: http://time.unitarium.com/sunrise/249915
A4: latitude in decimal degrees (positive in northern hemisphere) | B4: 51.51039 | C4: Lieshout | D4: Cameras 356
A5: longitude in decimal degrees (negative for western hemisphere) | B5: 5.582278 | C5: dusk on offset | D5: 8
A6: year | B6: 2013 | C6: dawn Off offset | D6: 9 | G6: =MIN($E$83:$E$1947) -> 17:23:12.185 | H6: Earliest ON time
A7: month | B7: 1 | G7: =CONCATENATE(TEXT(HOUR($G$6),"#"),":00:00") -> 17:00:00 | H7: Earliest start time hour (Set your wall timer and TaskScheduler to start the script at this time)
A8: day | B8: 1
A9: time zone in hours relative to GMT/UTC (PST= -8, MST= -7, CST= -6, EST= -5) | B9: 1 | C9: DST Start | D9: DST End | E9: Note: DST starts the 2nd sunday in march and ends the day before the 1st sunday in November.
A10: daylight savings time (no= 0, yes= 1) | B10: 1 | C10: 2013-03-31 | D10: 2013-10-27 | G10: For DST in US L83-L1947: | J10: =IF($B$10=1,IF(MATCH($L83,DATE(YEAR($L83),{1,3,11},{1,15,8})-WEEKDAY(DATE(YEAR($L83),{1,3,11},7)))=2,1,0),0)
G11: For DST in EURO L83-L1947: | J11: =IF($B$10=1,IF(MATCH(D10,DATE(YEAR(D10),{1,4,11},1)-WEEKDAY(DATE(YEAR(D10),{1,4,11},7)))=2,1,0),0)
A12: Output (local time in days) | G12: =MAX($M$83:$M$1947) -> 08:50:16.219 | H12: Latest OFF time | J12: You may need to adapt your formulas for L83 to L1947 to match your DST calculations in your region.
A13: astronomical dawn (sun is 18 degrees below horizon) | B13: =dawn(B4,B5,B6,B7,B8,B9,B10,18) -> 07:39:51.623 | G13: =CONCATENATE(TEXT(HOUR($G$12)+1,"#"),":00:00") -> 9:00:00 | H13: Latest wall timer hour (Set your wall timer and Task Scheduler to stop the script at this time)
A14: nautical dawn (sun is 12 degrees below horizon) | B14: =dawn(B4,B5,B6,B7,B8,B9,B10,12) -> 08:20:29.452
A15: civil dawn (sun is 6 degrees below horizon) | B15: =dawn(B4,B5,B6,B7,B8,B9,B10,6) -> 09:03:23.823
A16: sunrise (sun is 0.833 degrees below horizon to account for refraction) | B16: =sunrise(B4,B5,B6,B7,B8,B9,B10) -> 09:43:20.093
A17: solar noon (sun is at its highest point in the sky for this day) | B17: =solarnoon(B4,B5,B6,B7,B8,B9,B10) -> 13:41:19.948
A18: sunset (sun is 0.833 degrees below horizon to account for refraction) | B18: =sunset(B4,B5,B6,B7,B8,B9,B10) -> 17:39:31.538
A19: civil dusk (sun is 6 degrees below horizon) | B19: =dusk(B4,B5,B6,B7,B8,B9,B10,6) -> 18:19:26.397
A20: nautical dusk (sun is 12 degrees below horizon) | B20: =dusk(B4,B5,B6,B7,B8,B9,B10,12) -> 19:02:19.735
A21: astronomical dusk (sun is 18 degrees below horizon) | B21: =dusk(B4,B5,B6,B7,B8,B9,B10,18) -> 19:42:56.923
A22: =CONCATENATE("Dynamic dawn (sun is ",D5,"° below horizon)") -> Dynamic dawn (sun is 8° below horizon) | B22: =dusk(B4,B5,B6,B7,B8,B9,B10,D6) -> 18:41:14.656
A23: =CONCATENATE("Dynamic dusk (sun is ",D5,"° below horizon)") -> Dynamic dusk (sun is 8° below horizon) | B23: =dusk(B4,B5,B6,B7,B8,B9,B10,D5) -> 18:34:03.924
E73: ```
C76: =MIN($E$83:$E$449) -> 17:23:12.367 | D76: Earliest ON time
C77: =CONCATENATE(TEXT(HOUR($C$76),"#"),":00:00") -> 17:00:00 | D77: Delay will be from the earliest start time hour (Set your TaskScheduler to start the script at this time)
C78: =$G$13 -> 9:00:00 | D78: Wall Timer OFF
I79: Dusk | J79: Dusk | K79: Dawn
I80: (UTC at | J80: (LDT at | K80: (UTC at
D81: Dawn OFF | E81: Dusk ON | F81: Dur- | I81: =CONCATENATE($D$5,"°below") -> 8°below | J81: =CONCATENATE($D$5,"° below ") -> 8° below | K81: =CONCATENATE($D$6,"° below") -> 9° below
C82: Date | D82: =CONCATENATE($D$5,"° ") -> 8° | E82: =CONCATENATE($D$5,"° ") -> 8° | F82: ation | G82: Delay | H82: DST | I82: horizon | J82: horizon | K82: horizon | L82: date | M82: sunrise | N82: sunset | O82: Day # | Q82: durz | R82: delta | S82: newdur
C83: =TEXT(L83,"mm/dd/yyyy") -> 01/01/2013 | D83: =TEXT(dawn($B$4,$B$5,YEAR($C83+1),MONTH($C83+1),DAY($C83+1),$B$9,$H83,$D$6),"hh:mm:ss") -> 07:41:33 | E83: =dusk($B$4,$B$5,YEAR(C83),MONTH(C83),DAY(C83),$B$9,$H83,$D$5) -> 17:34:03.924 | F83: =((TIME(23,59,59.999)-E83)+D83)*24 -> 14.12446555 | G83: =HOUR(E83-$C$77)*3600+MINUTE(E83-$C$77)*60+SECOND(E83-$C$77) -> 2044 | H83: =IF($B$10=1,IF(MATCH($L83,DATE(YEAR($L83),{1,4,11},1)-WEEKDAY(DATE(YEAR($L83),{1,4,11},7)))=2,1,0),0) -> 0 | I83: =dusk($B$4,$B$5,YEAR($C83),MONTH($C83),DAY($C83),0,0,$D$5) -> 16:34:03.924 | J83: =dusk($B$4,$B$5,YEAR($C83),MONTH($C83),DAY($C83),$B$9,$H83,$D$5) -> 17:34:03.924 | K83: =dawn($B$4,$B$5,YEAR($C83+1),MONTH($C83+1),DAY($C83+1),0,0,$D$6) -> 06:41:33.002 | L83: =DATE($B$6,1,1) -> 2013-01-01 | M83: =dawn($B$4,$B$5,YEAR($C83+1),MONTH($C83+1),DAY($C83+1),$B$9,$H83,0) -> 08:49:59.638 | N83: =dusk($B$4,$B$5,YEAR(C83),MONTH(C83),DAY(C83),$B$9,$H83,0) -> 16:32:43.198 | O83: 0 | P83: =MIN(dusk($B$4,$B$5,YEAR(C83),MONTH(C83),DAY(C83),0,0,$D$5),E83) -> 16:34:03.924 | Q83: =IF(I83>K83,((TIME(23,59,59.999)-I83)+K83)*24,(K83-I83)*24) -> 14.12446616 | R83: =(E83-J83)*24 -> 0 | S83: =(Q83-R83) -> 14.12446616
C84: 01/02/2013 | D84: 07:41:28 | E84: 17:35:03.257 | F84: 14.10659539 | G84: =HOUR(E84-$C$77)*3600+MINUTE(E84-$C$77)*60+SECOND(E84-$C$77) -> 2103 | H84: =IF($B$10=1,IF(MATCH($L84,DATE(YEAR($L84),{1,4,11},1)-WEEKDAY(DATE(YEAR($L84),{1,4,11},7)))=2,1,0),0) -> 0 | I84: 16:35:03.257 | J84: 17:35:03.257 | K84: =dawn($B$4,$B$5,YEAR($C84+1),MONTH($C84+1),DAY($C84+1),0,0,$D$6) -> 06:41:28.144 | L84: =L83+1 -> 2013-01-02 | M84: =dawn($B$4,$B$5,YEAR($C84+1),MONTH($C84+1),DAY($C84+1),$B$9,$H84,0) -> 08:49:47.132 | N84: =dusk($B$4,$B$5,YEAR(C84),MONTH(C84),DAY(C84),$B$9,$H84,0) -> 16:33:49.260 | O84: =O83+1 -> 1 | P84: =MIN(dusk($B$4,$B$5,YEAR(C84),MONTH(C84),DAY(C84),0,0,$D$5),E84) -> 16:35:03.257 | Q84: =IF(I84>K84,((TIME(23,59,59.999)-I84)+K84)*24,(K84-I84)*24) -> 14.10663544 | R84: =(E84-J84)*24 -> 0 | S84: =(Q84-R84) -> 14.10663544
C85: 01/03/2013 | D85: 07:41:20 | E85: 17:36:04.795 | F85: 14.0872791 | G85: 2165 | H85: =IF($B$10=1,IF(MATCH($L85,DATE(YEAR($L85),{1,4,11},1)-WEEKDAY(DATE(YEAR($L85),{1,4,11},7)))=2,1,0),0) -> 0 | I85: 16:36:04.795 | J85: 17:36:04.795 | K85: 06:41:20.412 | L85: =L84+1 -> 2013-01-03 | M85: 08:49:31.234 | N85: 16:34:58.020 | O85: =O84+1 -> 2 | P85: 16:36:04.795 | Q85: 14.08739356 | R85: 0 | S85: 14.08739356
C86: 01/04/2013 | D86: 07:41:10 | E86: 17:37:08.480 | F86: 14.06681106 | G86: 2228 | H86: =IF($B$10=1,IF(MATCH($L86,DATE(YEAR($L86),{1,4,11},1)-WEEKDAY(DATE(YEAR($L86),{1,4,11},7)))=2,1,0),0) -> 0 | I86: 16:37:08.480 | J86: 17:37:08.480 | K86: 06:41:09.808 | L86: 2013-01-04 | M86: 08:49:11.967 | N86: 16:36:09.399 | O86: 3 | P86: 16:37:08.480 | Q86: 14.06675772 | R86: 0 | S86: 14.06675772
C87: 01/05/2013 | D87: 07:40:56 | E87: 17:38:14.250 | F87: 14.0446527 | G87: 2294 | H87: =IF($B$10=1,IF(MATCH($L87,DATE(YEAR($L87),{1,4,11},1)-WEEKDAY(DATE(YEAR($L87),{1,4,11},7)))=2,1,0),0) -> 0 | I87: 16:38:14.250 | J87: 17:38:14.250 | K87: 06:40:56.336 | L87: 2013-01-05 | M87: 08:48:49.358 | N87: 16:37:23.316 | O87: 4 | P87: 16:38:14.250 | Q87: 14.04474612 | R87: 0 | S87: 14.04474612
C88: 01/06/2013 | D88: 07:40:40 | E88: 17:39:22.043 | F88: 14.02137687 | G88: 2362 | H88: =IF($B$10=1,IF(MATCH($L88,DATE(YEAR($L88),{1,4,11},1)-WEEKDAY(DATE(YEAR($L88),{1,4,11},7)))=2,1,0),0) -> 0 | I88: 16:39:22.043 | J88: 17:39:22.043 | K88: 06:40:40.004 | L88: 2013-01-06 | M88: 08:48:23.438 | N88: 16:38:39.687 | O88: 5 | P88: 16:39:22.043 | Q88: 14.02137799 | R88: 0 | S88: 14.02137799
C89: 01/07/2013 | D89: 07:40:21 | E89: 17:40:31.796 | F89: 13.99672335 | G89: 2432 | H89: =IF($B$10=1,IF(MATCH($L89,DATE(YEAR($L89),{1,4,11},1)-WEEKDAY(DATE(YEAR($L89),{1,4,11},7)))=2,1,0),0) -> 0 | I89: 16:40:31.796 | J89: 17:40:31.796 | K89: 06:40:20.820 | L89: 2013-01-07 | M89: 08:47:54.239 | N89: 16:39:58.427 | O89: 6 | P89: 16:40:31.796 | Q89: 13.99667344 | R89: 0 | S89: 13.99667344
C90: 01/08/2013 | D90: 07:39:59 | E90: 17:41:43.444 | F90: 13.97070993 | G90: 2503 | H90: =IF($B$10=1,IF(MATCH($L90,DATE(YEAR($L90),{1,4,11},1)-WEEKDAY(DATE(YEAR($L90),{1,4,11},7)))=2,1,0),0) -> 0 | I90: 16:41:43.444 | J90: 17:41:43.444 | K90: 06:39:58.797 | L90: 2013-01-08 | M90: 08:47:21.799 | N90: 16:41:19.450 | O90: 7 | P90: 16:41:43.444 | Q90: 13.97065345 | R90: 0 | S90: 13.97065345
C91: 01/09/2013 | D91: 07:39:34 | E91: 17:42:56.924 | F91: 13.94335458 | G91: 2577 | H91: =IF($B$10=1,IF(MATCH($L91,DATE(YEAR($L91),{1,4,11},1)-WEEKDAY(DATE(YEAR($L91),{1,4,11},7)))=2,1,0),0) -> 0 | I91: 16:42:56.924 | J91: 17:42:56.924 | K91: 06:39:33.947 | L91: 2013-01-09 | M91: 08:46:46.156 | N91: 16:42:42.666 | O91: 8 | P91: 16:42:56.924 | Q91: 13.94333979 | R91: 0 | S91: 13.94333979
C92: 01/10/2013 | D92: 07:39:06 | E92: 17:44:12.169 | F92: 13.91467539 | G92: 2652 | H92: =IF($B$10=1,IF(MATCH($L92,DATE(YEAR($L92),{1,4,11},1)-WEEKDAY(DATE(YEAR($L92),{1,4,11},7)))=2,1,0),0) -> 0 | I92: 16:44:12.169 | J92: 17:44:12.169 | K92: 06:39:06.286 | L92: 2013-01-10 | M92: 08:46:07.353 | N92: 16:44:07.989 | O92: 9 | P92: 16:44:12.169 | Q92: 13.91475491 | R92: 0 | S92: 13.91475491
C93: 01/11/2013 | D93: 07:38:36 | E93: 17:45:29.114 | F93: 13.88496834 | G93: 2729 | H93: =IF($B$10=1,IF(MATCH($L93,DATE(YEAR($L93),{1,4,11},1)-WEEKDAY(DATE(YEAR($L93),{1,4,11},7)))=2,1,0),0) -> 0 | I93: 16:45:29.114 | J93: 17:45:29.114 | K93: 06:38:35.833 | L93: 2013-01-11 | M93: 08:45:25.431 | N93: 16:45:35.328 | O93: 10 | P93: 16:45:29.114 | Q93: 13.88492193 | R93: 0 | S93: 13.88492193
C94: 01/12/2013 | D94: 07:38:03 | E94: 17:46:47.694 | F94: 13.85397388 | G94: 2808 | H94: =IF($B$10=1,IF(MATCH($L94,DATE(YEAR($L94),{1,4,11},1)-WEEKDAY(DATE(YEAR($L94),{1,4,11},7)))=2,1,0),0) -> 0 | I94: 16:46:47.694 | J94: 17:46:47.694 | K94: 06:38:02.606 | L94: 2013-01-12 | M94: 08:44:40.439 | N94: 16:47:04.593 | O94: 11 | P94: 16:46:47.694 | Q94: 13.85386451 | R94: 0 | S94: 13.85386451
C95: 01/13/2013 | D95: 07:37:27 | E95: 17:48:07.843 | F95: 13.82171024 | G95: 2888 | H95: =IF($B$10=1,IF(MATCH($L95,DATE(YEAR($L95),{1,4,11},1)-WEEKDAY(DATE(YEAR($L95),{1,4,11},7)))=2,1,0),0) -> 0 | I95: 16:48:07.843 | J95: 17:48:07.843 | K95: 06:37:26.628 | L95: 2013-01-13 | M95: 08:43:52.422 | N95: 16:48:35.695 | O95: 12 | P95: 16:48:07.843 | Q95: 13.82160684 | R95: 0 | S95: 13.82160684
C96: 01/14/2013 | D96: 07:36:48 | E96: 17:49:29.496 | F96: 13.7881956 | G96: 2969 | H96: =IF($B$10=1,IF(MATCH($L96,DATE(YEAR($L96),{1,4,11},1)-WEEKDAY(DATE(YEAR($L96),{1,4,11},7)))=2,1,0),0) -> 0 | I96: 16:49:29.496 | J96: 17:49:29.496 | K96: 06:36:47.920 | L96: 2013-01-14 | M96: 08:43:01.431 | N96: 16:50:08.544 | O96: 13 | P96: 16:49:29.496 | Q96: 13.78817351 | R96: 0 | S96: 13.78817351
C97: 01/15/2013 | D97: 07:36:07 | E97: 17:50:52.587 | F97: 13.75372585 | G97: 3053 | H97: =IF($B$10=1,IF(MATCH($L97,DATE(YEAR($L97),{1,4,11},1)-WEEKDAY(DATE(YEAR($L97),{1,4,11},7)))=2,1,0),0) -> 0 | I97: 16:50:52.587 | J97: 17:50:52.587 | K97: 06:36:06.509 | L97: 2013-01-15 | M97: 08:42:07.516 | N97: 16:51:43.051 | O97: 14 | P97: 16:50:52.587 | Q97: 13.75358947 | R97: 0 | S97: 13.75358947
C98: 01/16/2013 | D98: 07:35:22 | E98: 17:52:17.052 | F98: 13.71776339 | G98: 3137 | H98: =IF($B$10=1,IF(MATCH($L98,DATE(YEAR($L98),{1,4,11},1)-WEEKDAY(DATE(YEAR($L98),{1,4,11},7)))=2,1,0),0) -> 0 | I98: 16:52:17.052 | J98: 17:52:17.052 | K98: 06:35:22.420 | L98: 2013-01-16 | M98: 08:41:10.730 | N98: 16:53:19.126 | O98: 15 | P98: 16:52:17.052 | Q98: 13.71788 | R98: 0 | S98: 13.71788
C99: 01/17/2013 | D99: 07:34:36 | E99: 17:53:42.826 | F99: 13.68115936 | G99: 3223 | H99: =IF($B$10=1,IF(MATCH($L99,DATE(YEAR($L99),{1,4,11},1)-WEEKDAY(DATE(YEAR($L99),{1,4,11},7)))=2,1,0),0) -> 0 | I99: 16:53:42.826 | J99: 17:53:42.826 | K99: 06:34:35.680 | L99: 2013-01-17 | M99: 08:40:11.126 | N99: 16:54:56.681 | O99: 16 | P99: 16:53:42.826 | Q99: 13.68107056 | R99: 0 | S99: 13.68107056
C100: 01/18/2013 | D100: 07:33:46 | E100: 17:55:09.847 | F100: 13.64309804 | G100: 3310 | H100: =IF($B$10=1,IF(MATCH($L100,DATE(YEAR($L100),{1,4,11},1)-WEEKDAY(DATE(YEAR($L100),{1,4,11},7)))=2,1,0),0) -> 0 | I100: 16:55:09.847 | J100: 17:55:09.847 | K100: 06:33:46.320 | L100: 2013-01-18 | M100: 08:39:08.759 | N100: 16:56:35.631 | O100: 17 | P100: 16:55:09.847 | Q100: 13.6431868 | R100: 0 | S100: 13.6431868
C101: 01/19/2013 | D101: 07:32:54 | E101: 17:56:38.052 | F101: 13.60415232 | G101: 3398 | H101: =IF($B$10=1,IF(MATCH($L101,DATE(YEAR($L101),{1,4,11},1)-WEEKDAY(DATE(YEAR($L101),{1,4,11},7)))=2,1,0),0) -> 0 | I101: 16:56:38.052 | J101: 17:56:38.052 | K101: 06:32:54.368 | L101: 2013-01-19 | M101: 08:38:03.682 | N101: 16:58:15.888 | O101: 18 | P101: 16:56:38.052 | Q101: 13.60425447 | R101: 0 | S101: 13.60425447
C102: 01/20/2013 | D102: 07:32:00 | E102: 17:58:07.379 | F102: 13.56433929 | G102: 3487 | H102: =IF($B$10=1,IF(MATCH($L102,DATE(YEAR($L102),{1,4,11},1)-WEEKDAY(DATE(YEAR($L102),{1,4,11},7)))=2,1,0),0) -> 0 | I102: 16:58:07.379 | J102: 17:58:07.379 | K102: 06:31:59.856 | L102: 2013-01-20 | M102: 08:36:55.954 | N102: 16:59:57.368 | O102: 19 | P102: 16:58:07.379 | Q102: 13.56429935 | R102: 0 | S102: 13.56429935
C103: 01/21/2013 | D103: 07:31:03 | E103: 17:59:37.767 | F103: 13.52339796 | G103: 3578 | H103: =IF($B$10=1,IF(MATCH($L103,DATE(YEAR($L103),{1,4,11},1)-WEEKDAY(DATE(YEAR($L103),{1,4,11},7)))=2,1,0),0) -> 0 | I103: 16:59:37.767 | J103: 17:59:37.767 | K103: 06:31:02.817 | L103: 2013-01-21 | M103: 08:35:45.629 | N103: 17:01:39.990 | O103: 20 | P103: 16:59:37.767 | Q103: 13.52334722 | R103: 0 | S103: 13.52334722
C104: 01/22/2013 | D104: 07:30:03 | E104: 18:01:09.159 | F104: 13.48134475 | G104: 3669 | H104: =IF($B$10=1,IF(MATCH($L104,DATE(YEAR($L104),{1,4,11},1)-WEEKDAY(DATE(YEAR($L104),{1,4,11},7)))=2,1,0),0) -> 0 | I104: 17:01:09.159 | J104: 18:01:09.159 | K104: 06:30:03.284 | L104: 2013-01-22 | M104: 08:34:32.765 | N104: 17:03:23.670 | O104: 21 | P104: 17:01:09.159 | Q104: 13.48142377 | R104: 0 | S104: 13.48142377
C105: 01/23/2013 | D105: 07:29:01 | E105: 18:02:41.495 | F105: 13.43847351 | G105: 3761 | H105: =IF($B$10=1,IF(MATCH($L105,DATE(YEAR($L105),{1,4,11},1)-WEEKDAY(DATE(YEAR($L105),{1,4,11},7)))=2,1,0),0) -> 0 | I105: 17:02:41.495 | J105: 18:02:41.495 | K105: 06:29:01.292 | L105: 2013-01-23 | M105: 08:33:17.418 | N105: 17:05:08.331 | O105: 22 | P105: 17:02:41.495 | Q105: 13.4385546 | R105: 0 | S105: 13.4385546
C106: 01/24/2013 | D106: 07:27:57 | E106: 18:04:14.720 | F106: 13.39479991 | G106: 3855 | H106: =IF($B$10=1,IF(MATCH($L106,DATE(YEAR($L106),{1,4,11},1)-WEEKDAY(DATE(YEAR($L106),{1,4,11},7)))=2,1,0),0) -> 0 | I106: 17:04:14.720 | J106: 18:04:14.720 | K106: 06:27:56.875 | L106: 2013-01-24 | M106: 08:31:59.646 | N106: 17:06:53.896 | O106: 23 | P106: 17:04:14.720 | Q106: 13.39476511 | R106: 0 | S106: 13.39476511
C107: 01/25/2013 | D107: 07:26:50 | E107: 18:05:48.779 | F107: 13.35006145 | G107: 3949 | H107: =IF($B$10=1,IF(MATCH($L107,DATE(YEAR($L107),{1,4,11},1)-WEEKDAY(DATE(YEAR($L107),{1,4,11},7)))=2,1,0),0) -> 0 | I107: 17:05:48.779 | J107: 18:05:48.779 | K107: 06:26:50.069 | L107: 2013-01-25 | M107: 08:30:39.507 | N107: 17:08:40.288 | O107: 24 | P107: 17:05:48.779 | Q107: 13.3500805 | R107: 0 | S107: 13.3500805
C108: 01/26/2013 | D108: 07:25:41 | E108: 18:07:23.617 | F108: 13.30455072 | G108: 4044 | H108: =IF($B$10=1,IF(MATCH($L108,DATE(YEAR($L108),{1,4,11},1)-WEEKDAY(DATE(YEAR($L108),{1,4,11},7)))=2,1,0),0) -> 0 | I108: 17:07:23.617 | J108: 18:07:23.617 | K108: 06:25:40.910 | L108: 2013-01-26 | M108: 08:29:17.057 | N108: 17:10:27.435 | O108: 25 | P108: 17:07:23.617 | Q108: 13.30452573 | R108: 0 | S108: 13.30452573
C109: 01/27/2013 | D109: 07:24:29 | E109: 18:08:59.184 | F109: 13.25800432 | G109: 4139 | H109: =IF($B$10=1,IF(MATCH($L109,DATE(YEAR($L109),{1,4,11},1)-WEEKDAY(DATE(YEAR($L109),{1,4,11},7)))=2,1,0),0) -> 0 | I109: 17:08:59.184 | J109: 18:08:59.184 | K109: 06:24:29.436 | L109: 2013-01-27 | M109: 08:27:52.355 | N109: 17:12:15.267 | O109: 26 | P109: 17:08:59.184 | Q109: 13.25812542 | R109: 0 | S109: 13.25812542
C110: 01/28/2013 | D110: 07:23:16 | E110: 18:10:35.430 | F110: 13.21099167 | G110: 4235 | H110: =IF($B$10=1,IF(MATCH($L110,DATE(YEAR($L110),{1,4,11},1)-WEEKDAY(DATE(YEAR($L110),{1,4,11},7)))=2,1,0),0) -> 0 | I110: 17:10:35.430 | J110: 18:10:35.430 | K110: 06:23:15.684 | L110: 2013-01-28 | M110: 08:26:25.456 | N110: 17:14:03.714 | O110: 27 | P110: 17:10:35.430 | Q110: 13.2109039 | R110: 0 | S110: 13.2109039
C111: 01/29/2013 | D111: 07:22:00 | E111: 18:12:12.306 | F111: 13.16297064 | G111: 4332 | H111: =IF($B$10=1,IF(MATCH($L111,DATE(YEAR($L111),{1,4,11},1)-WEEKDAY(DATE(YEAR($L111),{1,4,11},7)))=2,1,0),0) -> 0 | I111: 17:12:12.306 | J111: 18:12:12.306 | K111: 06:21:59.692 | L111: 2013-01-29 | M111: 08:24:56.417 | N111: 17:15:52.712 | O111: 28 | P111: 17:12:12.306 | Q111: 13.16288511 | R111: 0 | S111: 13.16288511
C112: 01/30/2013 | D112: 07:20:41 | E112: 18:13:49.765 | F112: 13.11395412 | G112: 4430 | H112: =IF($B$10=1,IF(MATCH($L112,DATE(YEAR($L112),{1,4,11},1)-WEEKDAY(DATE(YEAR($L112),{1,4,11},7)))=2,1,0),0) -> 0 | I112: 17:13:49.765 | J112: 18:13:49.765 | K112: 06:20:41.498 | L112: 2013-01-30 | M112: 08:23:25.296 | N112: 17:17:42.197 | O112: 29 | P112: 17:13:49.765 | Q112: 13.11409259 | R112: 0 | S112: 13.11409259
C113: 01/31/2013 | D113: 07:19:21 | E113: 18:15:27.764 | F113: 13.06451004 | G113: 4528 | H113: =IF($B$10=1,IF(MATCH($L113,DATE(YEAR($L113),{1,4,11},1)-WEEKDAY(DATE(YEAR($L113),{1,4,11},7)))=2,1,0),0) -> 0 | I113: 17:15:27.764 | J113: 18:15:27.764 | K113: 06:19:21.142 | L113: 2013-01-31 | M113: 08:21:52.147 | N113: 17:19:32.108 | O113: 30 | P113: 17:15:27.764 | Q113: 13.06454947 | R113: 0 | S113: 13.06454947
C114: 02/01/2013 | D114: 07:17:59 | E114: 18:17:06.259 | F114: 13.01437249 | G114: 4626 | H114: =IF($B$10=1,IF(MATCH($L114,DATE(YEAR($L114),{1,4,11},1)-WEEKDAY(DATE(YEAR($L114),{1,4,11},7)))=2,1,0),0) -> 0 | I114: 17:17:06.259 | J114: 18:17:06.259 | K114: 06:17:58.661 | L114: 2013-02-01 | M114: 08:20:17.027 | N114: 17:21:22.387 | O114: 31 | P114: 17:17:06.259 | Q114: 13.01427841 | R114: 0 | S114: 13.01427841
C115: 02/02/2013 | D115: 07:16:34 | E115: 18:18:45.210 | F115: 12.96327502 | G115: 4725 | H115: =IF($B$10=1,IF(MATCH($L115,DATE(YEAR($L115),{1,4,11},1)-WEEKDAY(DATE(YEAR($L115),{1,4,11},7)))=2,1,0),0) -> 0 | I115: 17:18:45.210 | J115: 18:18:45.210 | K115: 06:16:34.096 | L115: 2013-02-02 | M115: 08:18:39.990 | N115: 17:23:12.979 | O115: 32 | P115: 17:18:45.210 | Q115: 12.96330161 | R115: 0 | S115: 12.96330161
C116: 02/03/2013 | D116: 07:15:07 | E116: 18:20:24.578 | F116: 12.9115062 | G116: 4825 | H116: =IF($B$10=1,IF(MATCH($L116,DATE(YEAR($L116),{1,4,11},1)-WEEKDAY(DATE(YEAR($L116),{1,4,11},7)))=2,1,0),0) -> 0 | I116: 17:20:24.578 | J116: 18:20:24.578 | K116: 06:15:07.485 | L116: 2013-02-03 | M116: 08:17:01.092 | N116: 17:25:03.829 | O116: 33 | P116: 17:20:24.578 | Q116: 12.91164079 | R116: 0 | S116: 12.91164079
C117: 02/04/2013 | D117: 07:13:39 | E117: 18:22:04.325 | F117: 12.85935406 | G117: 4924 | H117: =IF($B$10=1,IF(MATCH($L117,DATE(YEAR($L117),{1,4,11},1)-WEEKDAY(DATE(YEAR($L117),{1,4,11},7)))=2,1,0),0) -> 0 | I117: 17:22:04.325 | J117: 18:22:04.325 | K117: 06:13:38.867 | L117: 2013-02-04 | M117: 08:15:20.385 | N117: 17:26:54.888 | O117: 34 | P117: 17:22:04.325 | Q117: 12.85931712 | R117: 0 | S117: 12.85931712
C118: 02/05/2013 | D118: 07:12:08 | E118: 18:23:44.418 | F118: 12.80627275 | G118: 5024 | H118: =IF($B$10=1,IF(MATCH($L118,DATE(YEAR($L118),{1,4,11},1)-WEEKDAY(DATE(YEAR($L118),{1,4,11},7)))=2,1,0),0) -> 0 | I118: 17:23:44.418 | J118: 18:23:44.418 | K118: 06:12:08.283 | L118: 2013-02-05 | M118: 08:13:37.923 | N118: 17:28:46.108 | O118: 35 | P118: 17:23:44.418 | Q118: 12.80635129 | R118: 0 | S118: 12.80635129
C119: 02/06/2013 | D119: 07:10:36 | E119: 18:25:24.823 | F119: 12.752827 | G119: 5125 | H119: =IF($B$10=1,IF(MATCH($L119,DATE(YEAR($L119),{1,4,11},1)-WEEKDAY(DATE(YEAR($L119),{1,4,11},7)))=2,1,0),0) -> 0 | I119: 17:25:24.823 | J119: 18:25:24.823 | K119: 06:10:35.771 | L119: 2013-02-06 | M119: 08:11:53.759 | N119: 17:30:37.443 | O119: 36 | P119: 17:25:24.823 | Q119: 12.75276342 | R119: 0 | S119: 12.75276342
C120: 02/07/2013 | D120: 07:09:01 | E120: 18:27:05.508 | F120: 12.69846989 | G120: 5226 | H120: =IF($B$10=1,IF(MATCH($L120,DATE(YEAR($L120),{1,4,11},1)-WEEKDAY(DATE(YEAR($L120),{1,4,11},7)))=2,1,0),0) -> 0 | I120: 17:27:05.508 | J120: 18:27:05.508 | K120: 06:09:01.372 | L120: 2013-02-07 | M120: 08:10:07.944 | N120: 17:32:28.851 | O120: 37 | P120: 17:27:05.508 | Q120: 12.69857312 | R120: 0 | S120: 12.69857312
C121: 02/08/2013 | D121: 07:07:25 | E121: 18:28:46.446 | F121: 12.64376506 | G121: 5326 | H121: =IF($B$10=1,IF(MATCH($L121,DATE(YEAR($L121),{1,4,11},1)-WEEKDAY(DATE(YEAR($L121),{1,4,11},7)))=2,1,0),0) -> 0 | I121: 17:28:46.446 | J121: 18:28:46.446 | K121: 06:07:25.124 | L121: 2013-02-08 | M121: 08:08:20.531 | N121: 17:34:20.291 | O121: 38 | P121: 17:28:46.446 | Q121: 12.64379942 | R121: 0 | S121: 12.64379942
C122: 02/09/2013 | D122: 07:05:47 | E122: 18:30:27.608 | F122: 12.5884423 | G122: 5428 | H122: =IF($B$10=1,IF(MATCH($L122,DATE(YEAR($L122),{1,4,11},1)-WEEKDAY(DATE(YEAR($L122),{1,4,11},7)))=2,1,0),0) -> 0 | I122: 17:30:27.608 | J122: 18:30:27.608 | K122: 06:05:47.067 | L122: 2013-02-09 | M122: 08:06:31.569 | N122: 17:36:11.726 | O122: 39 | P122: 17:30:27.608 | Q122: 12.58846079 | R122: 0 | S122: 12.58846079
C123: 02/10/2013 | D123: 07:04:07 | E123: 18:32:08.969 | F123: 12.53250864 | G123: 5529 | H123: =IF($B$10=1,IF(MATCH($L123,DATE(YEAR($L123),{1,4,11},1)-WEEKDAY(DATE(YEAR($L123),{1,4,11},7)))=2,1,0),0) -> 0 | I123: 17:32:08.969 | J123: 18:32:08.969 | K123: 06:04:07.240 | L123: 2013-02-10 | M123: 08:04:41.109 | N123: 17:38:03.121 | O123: 40 | P123: 17:32:08.969 | Q123: 12.53257517 | R123: 0 | S123: 12.53257517
C124: 02/11/2013 | D124: 07:02:26 | E124: 18:33:50.506 | F124: 12.47624837 | G124: 5631 | H124: =IF($B$10=1,IF(MATCH($L124,DATE(YEAR($L124),{1,4,11},1)-WEEKDAY(DATE(YEAR($L124),{1,4,11},7)))=2,1,0),0) -> 0 | I124: 17:33:50.506 | J124: 18:33:50.506 | K124: 06:02:25.682 | L124: 2013-02-11 | M124: 08:02:49.200 | N124: 17:39:54.442 | O124: 41 | P124: 17:33:50.506 | Q124: 12.4761599 | R124: 0 | S124: 12.4761599
C125: 02/12/2013 | D125: 07:00:42 | E125: 18:35:32.197 | F125: 12.41911193 | G125: 5732 | H125: =IF($B$10=1,IF(MATCH($L125,DATE(YEAR($L125),{1,4,11},1)-WEEKDAY(DATE(YEAR($L125),{1,4,11},7)))=2,1,0),0) -> 0 | I125: 17:35:32.197 | J125: 18:35:32.197 | K125: 06:00:42.431 | L125: 2013-02-12 | M125: 08:00:55.891 | N125: 17:41:45.659 | O125: 42 | P125: 17:35:32.197 | Q125: 12.41923178 | R125: 0 | S125: 12.41923178
C126: 02/13/2013 | D126: 06:58:58 | E126: 18:37:14.023 | F126: 12.36193816 | G126: 5834 | H126: =IF($B$10=1,IF(MATCH($L126,DATE(YEAR($L126),{1,4,11},1)-WEEKDAY(DATE(YEAR($L126),{1,4,11},7)))=2,1,0),0) -> 0 | I126: 17:37:14.023 | J126: 18:37:14.023 | K126: 05:58:57.528 | L126: 2013-02-13 | M126: 07:59:01.228 | N126: 17:43:36.744 | O126: 43 | P126: 17:37:14.023 | Q126: 12.36180704 | R126: 0 | S126: 12.36180704
C127: 02/14/2013 | D127: 06:57:11 | E127: 18:38:55.965 | F127: 12.30389872 | G127: 5936 | H127: =IF($B$10=1,IF(MATCH($L127,DATE(YEAR($L127),{1,4,11},1)-WEEKDAY(DATE(YEAR($L127),{1,4,11},7)))=2,1,0),0) -> 0 | I127: 17:38:55.965 | J127: 18:38:55.965 | K127: 05:57:11.009 | L127: 2013-02-14 | M127: 07:57:05.260 | N127: 17:45:27.670 | O127: 44 | P127: 17:38:55.965 | Q127: 12.30390136 | R127: 0 | S127: 12.30390136
C128: 02/15/2013 | D128: 06:55:23 | E128: 18:40:38.007 | F128: 12.2455537 | G128: 6038 | H128: =IF($B$10=1,IF(MATCH($L128,DATE(YEAR($L128),{1,4,11},1)-WEEKDAY(DATE(YEAR($L128),{1,4,11},7)))=2,1,0),0) -> 0 | I128: 17:40:38.007 | J128: 18:40:38.007 | K128: 05:55:22.914 | L128: 2013-02-15 | M128: 07:55:08.032 | N128: 17:47:18.415 | O128: 45 | P128: 17:40:38.007 | Q128: 12.24552985 | R128: 0 | S128: 12.24552985
C129: 02/16/2013 | D129: 06:53:33 | E129: 18:42:20.134 | F129: 12.18662935 | G129: 6140 | H129: =IF($B$10=1,IF(MATCH($L129,DATE(YEAR($L129),{1,4,11},1)-WEEKDAY(DATE(YEAR($L129),{1,4,11},7)))=2,1,0),0) -> 0 | I129: 17:42:20.134 | J129: 18:42:20.134 | K129: 05:53:33.280 | L129: 2013-02-16 | M129: 07:53:09.590 | N129: 17:49:08.956 | O129: 46 | P129: 17:42:20.134 | Q129: 12.18670709 | R129: 0 | S129: 12.18670709
C130: 02/17/2013 | D130: 06:51:42 | E130: 18:44:02.335 | F130: 12.12740706 | G130: 6242 | H130: =IF($B$10=1,IF(MATCH($L130,DATE(YEAR($L130),{1,4,11},1)-WEEKDAY(DATE(YEAR($L130),{1,4,11},7)))=2,1,0),0) -> 0 | I130: 17:44:02.335 | J130: 18:44:02.335 | K130: 05:51:42.144 | L130: 2013-02-17 | M130: 07:51:09.980 | N130: 17:50:59.273 | O130: 47 | P130: 17:44:02.335 | Q130: 12.12744711 | R130: 0 | S130: 12.12744711
C131: 02/18/2013 | D131: 06:49:50 | E131: 18:45:44.596 | F131: 12.06788996 | G131: 6345 | H131: =IF($B$10=1,IF(MATCH($L131,DATE(YEAR($L131),{1,4,11},1)-WEEKDAY(DATE(YEAR($L131),{1,4,11},7)))=2,1,0),0) -> 0 | I131: 17:45:44.596 | J131: 18:45:44.596 | K131: 05:49:49.545 | L131: 2013-02-18 | M131: 07:49:09.244 | N131: 17:52:49.350 | O131: 48 | P131: 17:45:44.596 | Q131: 12.06776343 | R131: 0 | S131: 12.06776343
C132: 02/19/2013 | D132: 06:47:56 | E132: 18:47:26.909 | F132: 12.00780298 | G132: 6447 | H132: =IF($B$10=1,IF(MATCH($L132,DATE(YEAR($L132),{1,4,11},1)-WEEKDAY(DATE(YEAR($L132),{1,4,11},7)))=2,1,0),0) -> 0 | I132: 17:47:26.909 | J132: 18:47:26.909 | K132: 05:47:55.518 | L132: 2013-02-19 | M132: 07:47:07.428 | N132: 17:54:39.170 | O132: 49 | P132: 17:47:26.909 | Q132: 12.00766901 | R132: 0 | S132: 12.00766901
C133: 02/20/2013 | D133: 06:46:00 | E133: 18:49:09.266 | F133: 11.94714842 | G133: 6549 | H133: =IF($B$10=1,IF(MATCH($L133,DATE(YEAR($L133),{1,4,11},1)-WEEKDAY(DATE(YEAR($L133),{1,4,11},7)))=2,1,0),0) -> 0 | I133: 17:49:09.266 | J133: 18:49:09.266 | K133: 05:46:00.100 | L133: 2013-02-20 | M133: 07:45:04.573 | N133: 17:56:28.720 | O133: 50 | P133: 17:49:09.266 | Q133: 11.94717634 | R133: 0 | S133: 11.94717634
C134: 02/21/2013 | D134: 06:44:03 | E134: 18:50:51.659 | F134: 11.88620595 | G134: 6652 | H134: =IF($B$10=1,IF(MATCH($L134,DATE(YEAR($L134),{1,4,11},1)-WEEKDAY(DATE(YEAR($L134),{1,4,11},7)))=2,1,0),0) -> 0 | I134: 17:50:51.659 | J134: 18:50:51.659 | K134: 05:44:03.329 | L134: 2013-02-21 | M134: 07:43:00.722 | N134: 17:58:17.987 | O134: 51 | P134: 17:50:51.659 | Q134: 11.88629737 | R134: 0 | S134: 11.88629737
C135: 02/22/2013 | D135: 06:42:05 | E135: 18:52:34.083 | F135: 11.82497705 | G135: 6754 | H135: =IF($B$10=1,IF(MATCH($L135,DATE(YEAR($L135),{1,4,11},1)-WEEKDAY(DATE(YEAR($L135),{1,4,11},7)))=2,1,0),0) -> 0 | I135: 17:52:34.083 | J135: 18:52:34.083 | K135: 05:42:05.240 | L135: 2013-02-22 | M135: 07:40:55.917 | N135: 18:00:06.961 | O135: 52 | P135: 17:52:34.083 | Q135: 11.82504358 | R135: 0 | S135: 11.82504358
C136: 02/23/2013 | D136: 06:40:06 | E136: 18:54:16.534 | F136: 11.76346284 | G136: 6857 | H136: =IF($B$10=1,IF(MATCH($L136,DATE(YEAR($L136),{1,4,11},1)-WEEKDAY(DATE(YEAR($L136),{1,4,11},7)))=2,1,0),0) -> 0 | I136: 17:54:16.534 | J136: 18:54:16.534 | K136: 05:40:05.867 | L136: 2013-02-23 | M136: 07:38:50.197 | N136: 18:01:55.634 | O136: 53 | P136: 17:54:16.534 | Q136: 11.76342599 | R136: 0 | S136: 11.76342599
C137: 02/24/2013 | D137: 06:38:05 | E137: 18:55:59.009 | F137: 11.70138632 | G137: 6959 | H137: =IF($B$10=1,IF(MATCH($L137,DATE(YEAR($L137),{1,4,11},1)-WEEKDAY(DATE(YEAR($L137),{1,4,11},7)))=2,1,0),0) -> 0 | I137: 17:55:59.009 | J137: 18:55:59.009 | K137: 05:38:05.248 | L137: 2013-02-24 | M137: 07:36:43.604 | N137: 18:03:43.997 | O137: 54 | P137: 17:55:59.009 | Q137: 11.70145512 | R137: 0 | S137: 11.70145512
C138: 02/25/2013 | D138: 06:36:03 | E138: 18:57:41.508 | F138: 11.63902567 | G138: 7062 | H138: =IF($B$10=1,IF(MATCH($L138,DATE(YEAR($L138),{1,4,11},1)-WEEKDAY(DATE(YEAR($L138),{1,4,11},7)))=2,1,0),0) -> 0 | I138: 17:57:41.508 | J138: 18:57:41.508 | K138: 05:36:03.415 | L138: 2013-02-25 | M138: 07:34:36.177 | N138: 18:05:32.047 | O138: 55 | P138: 17:57:41.508 | Q138: 11.63914107 | R138: 0 | S138: 11.63914107
C139: 02/26/2013 | D139: 06:34:00 | E139: 18:59:24.028 | F139: 11.57638097 | G139: 7164 | H139: =IF($B$10=1,IF(MATCH($L139,DATE(YEAR($L139),{1,4,11},1)-WEEKDAY(DATE(YEAR($L139),{1,4,11},7)))=2,1,0),0) -> 0 | I139: 17:59:24.028 | J139: 18:59:24.028 | K139: 05:34:00.405 | L139: 2013-02-26 | M139: 07:32:27.955 | N139: 18:07:19.777 | O139: 56 | P139: 17:59:24.028 | Q139: 11.5764935 | R139: 0 | S139: 11.5764935
C140: 02/27/2013 | D140: 06:31:56 | E140: 19:01:06.573 | F140: 11.51345201 | G140: 7267 | H140: =IF($B$10=1,IF(MATCH($L140,DATE(YEAR($L140),{1,4,11},1)-WEEKDAY(DATE(YEAR($L140),{1,4,11},7)))=2,1,0),0) -> 0 | I140: 18:01:06.573 | J140: 19:01:06.573 | K140: 05:31:56.251 | L140: 2013-02-27 | M140: 07:30:18.976 | N140: 18:09:07.186 | O140: 57 | P140: 18:01:06.573 | Q140: 11.51352163 | R140: 0 | S140: 11.51352163
C141: 02/28/2013 | D141: 06:29:51 | E141: 19:02:49.142 | F141: 11.45023824 | G141: 7369 | H141: =IF($B$10=1,IF(MATCH($L141,DATE(YEAR($L141),{1,4,11},1)-WEEKDAY(DATE(YEAR($L141),{1,4,11},7)))=2,1,0),0) -> 0 | I141: 18:02:49.142 | J141: 19:02:49.142 | K141: 05:29:50.986 | L141: 2013-02-28 | M141: 07:28:09.278 | N141: 18:10:54.271 | O141: 58 | P141: 18:02:49.142 | Q141: 11.45023431 | R141: 0 | S141: 11.45023431
C142: 03/01/2013 | D142: 06:27:45 | E142: 19:04:31.740 | F142: 11.38673885 | G142: 7472 | H142: =IF($B$10=1,IF(MATCH($L142,DATE(YEAR($L142),{1,4,11},1)-WEEKDAY(DATE(YEAR($L142),{1,4,11},7)))=2,1,0),0) -> 0 | I142: 18:04:31.740 | J142: 19:04:31.740 | K142: 05:27:44.644 | L142: 2013-03-01 | M142: 07:25:58.899 | N142: 18:12:41.033 | O142: 59 | P142: 18:04:31.740 | Q142: 11.38663996 | R142: 0 | S142: 11.38663996
C143: 03/02/2013 | D143: 06:25:37 | E143: 19:06:14.370 | F143: 11.322675 | G143: 7574 | H143: =IF($B$10=1,IF(MATCH($L143,DATE(YEAR($L143),{1,4,11},1)-WEEKDAY(DATE(YEAR($L143),{1,4,11},7)))=2,1,0),0) -> 0 | I143: 18:06:14.370 | J143: 19:06:14.370 | K143: 05:25:37.258 | L143: 2013-03-02 | M143: 07:23:47.874 | N143: 18:14:27.472 | O143: 60 | P143: 18:06:14.370 | Q143: 11.32274667 | R143: 0 | S143: 11.32274667
C144: 03/03/2013 | D144: 06:23:29 | E144: 19:07:57.037 | F144: 11.25860089 | G144: 7677 | H144: =IF($B$10=1,IF(MATCH($L144,DATE(YEAR($L144),{1,4,11},1)-WEEKDAY(DATE(YEAR($L144),{1,4,11},7)))=2,1,0),0) -> 0 | I144: 18:07:57.037 | J144: 19:07:57.037 | K144: 05:23:28.860 | L144: 2013-03-03 | M144: 07:21:36.241 | N144: 18:16:13.589 | O144: 61 | P144: 18:07:57.037 | Q144: 11.25856212 | R144: 0 | S144: 11.25856212
C145: 03/04/2013 | D145: 06:21:19 | E145: 19:09:39.746 | F145: 11.19395941 | G145: 7780 | H145: =IF($B$10=1,IF(MATCH($L145,DATE(YEAR($L145),{1,4,11},1)-WEEKDAY(DATE(YEAR($L145),{1,4,11},7)))=2,1,0),0) -> 0 | I145: 18:09:39.746 | J145: 19:09:39.746 | K145: 05:21:19.483 | L145: 2013-03-04 | M145: 07:19:24.035 | N145: 18:17:59.387 | O145: 62 | P145: 18:09:39.746 | Q145: 11.1940937 | R145: 0 | S145: 11.1940937
C146: 03/05/2013 | D146: 06:19:09 | E146: 19:11:22.504 | F146: 11.12930432 | G146: 7883 | H146: =IF($B$10=1,IF(MATCH($L146,DATE(YEAR($L146),{1,4,11},1)-WEEKDAY(DATE(YEAR($L146),{1,4,11},7)))=2,1,0),0) -> 0 | I146: 18:11:22.504 | J146: 19:11:22.504 | K146: 05:19:09.159 | L146: 2013-03-05 | M146: 07:17:11.290 | N146: 18:19:44.871 | O146: 63 | P146: 18:11:22.504 | Q146: 11.12934844 | R146: 0 | S146: 11.12934844
C147: =TEXT(L147,"mm/dd/yyyy") -> 03/06/2013 | D147: =TEXT(dawn($B$4,$B$5,YEAR($C147+1),MONTH($C147+1),DAY($C147+1),$B$9,$H147,$D$6),"hh:mm:ss") -> 06:16:58 | E147: =dusk($B$4,$B$5,YEAR(C147),MONTH(C147),DAY(C147),$B$9,$H147,$D$5) -> 19:13:05.319 | F147: =((TIME(23,59,59.999)-E147)+D147)*24 -> 11.06435583 | G147: 7985 | H147: =IF($B$10=1,IF(MATCH($L147,DATE(YEAR($L147),{1,4,11},1)-WEEKDAY(DATE(YEAR($L147),{1,4,11},7)))=2,1,0),0) -> 0 | I147: =dusk($B$4,$B$5,YEAR($C147),MONTH($C147),DAY($C147),0,0,$D$5) -> 18:13:05.319 | J147: =dusk($B$4,$B$5,YEAR($C147),MONTH($C147),DAY($C147),$B$9,$H147,$D$5) -> 19:13:05.319 | K147: 05:16:57.918 | L147: 2013-03-06 | M147: 07:14:58.043 | N147: 18:21:30.044 | O147: 64 | P147: 18:13:05.319 | Q147: 11.06433308 | R147: 0 | S147: 11.06433308
C148: 03/07/2013 | D148: 06:14:46 | E148: 19:14:48.198 | F148: 10.99911176 | G148: =HOUR(E148-$C$77)*3600+MINUTE(E148-$C$77)*60+SECOND(E148-$C$77) -> 8088 | H148: =IF($B$10=1,IF(MATCH($L148,DATE(YEAR($L148),{1,4,11},1)-WEEKDAY(DATE(YEAR($L148),{1,4,11},7)))=2,1,0),0) -> 0 | I148: 18:14:48.198 | J148: 19:14:48.198 | K148: =dawn($B$4,$B$5,YEAR($C148+1),MONTH($C148+1),DAY($C148+1),0,0,$D$6) -> 05:14:45.792 | L148: 2013-03-07 | M148: =dawn($B$4,$B$5,YEAR($C148+1),MONTH($C148+1),DAY($C148+1),$B$9,$H148,0) -> 07:12:44.326 | N148: =dusk($B$4,$B$5,YEAR(C148),MONTH(C148),DAY(C148),$B$9,$H148,0) -> 18:23:14.912 | O148: 65 | P148: =MIN(dusk($B$4,$B$5,YEAR(C148),MONTH(C148),DAY(C148),0,0,$D$5),E148) -> 18:14:48.198 | Q148: =IF(I148>K148,((TIME(23,59,59.999)-I148)+K148)*24,(K148-I148)*24) -> 10.99905406 | R148: =(E148-J148)*24 -> 0 | S148: =(Q148-R148) -> 10.99905406
C149: 03/08/2013 | D149: 06:12:33 | E149: 19:16:31.149 | F149: 10.93356973 | G149: 8191 | H149: =IF($B$10=1,IF(MATCH($L149,DATE(YEAR($L149),{1,4,11},1)-WEEKDAY(DATE(YEAR($L149),{1,4,11},7)))=2,1,0),0) -> 0 | I149: 18:16:31.149 | J149: 19:16:31.149 | K149: 05:12:32.812 | L149: =L148+1 -> 2013-03-08 | M149: 07:10:30.174 | N149: 18:24:59.481 | O149: =O148+1 -> 66 | P149: 18:16:31.149 | Q149: 10.93351754 | R149: 0 | S149: 10.93351754
C150: 03/09/2013 | D150: 06:10:19 | E150: 19:18:14.182 | F150: 10.86772721 | G150: 8294 | H150: =IF($B$10=1,IF(MATCH($L150,DATE(YEAR($L150),{1,4,11},1)-WEEKDAY(DATE(YEAR($L150),{1,4,11},7)))=2,1,0),0) -> 0 | I150: 18:18:14.182 | J150: 19:18:14.182 | K150: 05:10:19.008 | L150: 2013-03-09 | M150: 07:08:15.619 | N150: 18:26:43.757 | O150: 67 | P150: 18:18:14.182 | Q150: 10.86772945 | R150: 0 | S150: 10.86772945
C151: 03/10/2013 | D151: 06:08:04 | E151: 19:19:57.307 | F151: 10.80158152 | G151: 8397 | H151: =IF($B$10=1,IF(MATCH($L151,DATE(YEAR($L151),{1,4,11},1)-WEEKDAY(DATE(YEAR($L151),{1,4,11},7)))=2,1,0),0) -> 0 | I151: 18:19:57.307 | J151: 19:19:57.307 | K151: 05:08:04.410 | L151: 2013-03-10 | M151: 07:06:00.696 | N151: 18:28:27.749 | O151: 68 | P151: 18:19:57.307 | Q151: 10.80169545 | R151: 0 | S151: 10.80169545
C152: 03/11/2013 | D152: 06:05:49 | E152: 19:21:40.533 | F152: 10.73540761 | G152: 8501 | H152: =IF($B$10=1,IF(MATCH($L152,DATE(YEAR($L152),{1,4,11},1)-WEEKDAY(DATE(YEAR($L152),{1,4,11},7)))=2,1,0),0) -> 0 | I152: 18:21:40.533 | J152: 19:21:40.533 | K152: 05:05:49.048 | L152: 2013-03-11 | M152: 07:03:45.437 | N152: 18:30:11.463 | O152: 69 | P152: 18:21:40.533 | Q152: 10.73542099 | R152: 0 | S152: 10.73542099
C153: 03/12/2013 | D153: 06:03:33 | E153: 19:23:23.871 | F153: 10.66892478 | G153: 8604 | H153: =IF($B$10=1,IF(MATCH($L153,DATE(YEAR($L153),{1,4,11},1)-WEEKDAY(DATE(YEAR($L153),{1,4,11},7)))=2,1,0),0) -> 0 | I153: 18:23:23.871 | J153: 19:23:23.871 | K153: 05:03:32.952 | L153: 2013-03-12 | M153: 07:01:29.874 | N153: 18:31:54.908 | O153: 70 | P153: 18:23:23.871 | Q153: 10.66891132 | R153: 0 | S153: 10.66891132
C154: 03/13/2013 | D154: 06:01:16 | E154: 19:25:07.332 | F154: 10.60212997 | G154: 8707 | H154: =IF($B$10=1,IF(MATCH($L154,DATE(YEAR($L154),{1,4,11},1)-WEEKDAY(DATE(YEAR($L154),{1,4,11},7)))=2,1,0),0) -> 0 | I154: 18:25:07.332 | J154: 19:25:07.332 | K154: 05:01:16.150 | L154: 2013-03-13 | M154: 06:59:14.039 | N154: 18:33:38.093 | O154: 71 | P154: 18:25:07.332 | Q154: 10.6021715 | R154: 0 | S154: 10.6021715
C155: 03/14/2013 | D155: 05:58:59 | E155: 19:26:50.928 | F155: 10.53529782 | G155: 8811 | H155: =IF($B$10=1,IF(MATCH($L155,DATE(YEAR($L155),{1,4,11},1)-WEEKDAY(DATE(YEAR($L155),{1,4,11},7)))=2,1,0),0) -> 0 | I155: 18:26:50.928 | J155: 19:26:50.928 | K155: 04:58:58.671 | L155: 2013-03-14 | M155: 06:56:57.963 | N155: 18:35:21.028 | O155: 72 | P155: 18:26:50.928 | Q155: 10.53520641 | R155: 0 | S155: 10.53520641
C156: 03/15/2013 | D156: 05:56:41 | E156: 19:28:34.670 | F156: 10.46814734 | G156: 8915 | H156: =IF($B$10=1,IF(MATCH($L156,DATE(YEAR($L156),{1,4,11},1)-WEEKDAY(DATE(YEAR($L156),{1,4,11},7)))=2,1,0),0) -> 0 | I156: 18:28:34.670 | J156: 19:28:34.670 | K156: 04:56:40.544 | L156: 2013-03-15 | M156: 06:54:41.678 | N156: 18:37:03.720 | O156: 73 | P156: 18:28:34.670 | Q156: 10.46802081 | R156: 0 | S156: 10.46802081
C157: 03/16/2013 | D157: 05:54:22 | E157: 19:30:18.569 | F157: 10.40067525 | G157: 9019 | H157: =IF($B$10=1,IF(MATCH($L157,DATE(YEAR($L157),{1,4,11},1)-WEEKDAY(DATE(YEAR($L157),{1,4,11},7)))=2,1,0),0) -> 0 | I157: 18:30:18.569 | J157: 19:30:18.569 | K157: 04:54:21.799 | L157: 2013-03-16 | M157: 06:52:25.216 | N157: 18:38:46.181 | O157: 74 | P157: 18:30:18.569 | Q157: 10.40061929 | R157: 0 | S157: 10.40061929
C158: 03/17/2013 | D158: 05:52:02 | E158: 19:32:02.639 | F158: 10.33287819 | G158: 9123 | H158: =IF($B$10=1,IF(MATCH($L158,DATE(YEAR($L158),{1,4,11},1)-WEEKDAY(DATE(YEAR($L158),{1,4,11},7)))=2,1,0),0) -> 0 | I158: 18:32:02.639 | J158: 19:32:02.639 | K158: 04:52:02.461 | L158: 2013-03-17 | M158: 06:50:08.606 | N158: 18:40:28.421 | O158: 75 | P158: 18:32:02.639 | Q158: 10.33300636 | R158: 0 | S158: 10.33300636
C159: 03/18/2013 | D159: 05:49:43 | E159: 19:33:46.890 | F159: 10.26530836 | G159: 9227 | H159: =IF($B$10=1,IF(MATCH($L159,DATE(YEAR($L159),{1,4,11},1)-WEEKDAY(DATE(YEAR($L159),{1,4,11},7)))=2,1,0),0) -> 0 | I159: 18:33:46.890 | J159: 19:33:46.890 | K159: 04:49:42.561 | L159: 2013-03-18 | M159: 06:47:51.880 | N159: 18:42:10.448 | O159: 76 | P159: 18:33:46.890 | Q159: 10.2651864 | R159: 0 | S159: 10.2651864
C160: 03/19/2013 | D160: 05:47:22 | E160: 19:35:31.336 | F160: 10.19712902 | G160: 9331 | H160: =IF($B$10=1,IF(MATCH($L160,DATE(YEAR($L160),{1,4,11},1)-WEEKDAY(DATE(YEAR($L160),{1,4,11},7)))=2,1,0),0) -> 0 | I160: 18:35:31.336 | J160: 19:35:31.336 | K160: 04:47:22.125 | L160: 2013-03-19 | M160: 06:45:35.069 | N160: 18:43:52.275 | O160: 77 | P160: 18:35:31.336 | Q160: 10.19716374 | R160: 0 | S160: 10.19716374
C161: 03/20/2013 | D161: 05:45:01 | E161: 19:37:15.988 | F161: 10.12889229 | G161: 9436 | H161: =IF($B$10=1,IF(MATCH($L161,DATE(YEAR($L161),{1,4,11},1)-WEEKDAY(DATE(YEAR($L161),{1,4,11},7)))=2,1,0),0) -> 0 | I161: 18:37:15.988 | J161: 19:37:15.988 | K161: 04:45:01.181 | L161: 2013-03-20 | M161: 06:43:18.202 | N161: 18:45:33.910 | O161: 78 | P161: 18:37:15.988 | Q161: 10.12894264 | R161: 0 | S161: 10.12894264
C162: 03/21/2013 | D162: 05:42:40 | E162: 19:39:00.859 | F162: 10.06059477 | G162: 9541 | H162: =IF($B$10=1,IF(MATCH($L162,DATE(YEAR($L162),{1,4,11},1)-WEEKDAY(DATE(YEAR($L162),{1,4,11},7)))=2,1,0),0) -> 0 | I162: 18:39:00.859 | J162: 19:39:00.859 | K162: 04:42:39.757 | L162: 2013-03-21 | M162: 06:41:01.310 | N162: 18:47:15.364 | O162: 79 | P162: 18:39:00.859 | Q162: 10.06052732 | R162: 0 | S162: 10.06052732
C163: 03/22/2013 | D163: 05:40:18 | E163: 19:40:45.961 | F163: 9.991955263 | G163: 9646 | H163: =IF($B$10=1,IF(MATCH($L163,DATE(YEAR($L163),{1,4,11},1)-WEEKDAY(DATE(YEAR($L163),{1,4,11},7)))=2,1,0),0) -> 0 | I163: 18:40:45.961 | J163: 19:40:45.961 | K163: 04:40:17.880 | L163: 2013-03-22 | M163: 06:38:44.422 | N163: 18:48:56.648 | O163: 80 | P163: 18:40:45.961 | Q163: 9.991921995 | R163: 0 | S163: 9.991921995
C164: 03/23/2013 | D164: 05:37:56 | E164: 19:42:31.307 | F164: 9.923248165 | G164: 9751 | H164: =IF($B$10=1,IF(MATCH($L164,DATE(YEAR($L164),{1,4,11},1)-WEEKDAY(DATE(YEAR($L164),{1,4,11},7)))=2,1,0),0) -> 0 | I164: 18:42:31.307 | J164: 19:42:31.307 | K164: 04:37:55.578 | L164: 2013-03-23 | M164: 06:36:27.570 | N164: 18:50:37.771 | O164: 81 | P164: 18:42:31.307 | Q164: 9.923130854 | R164: 0 | S164: 9.923130854
C165: 03/24/2013 | D165: 05:35:33 | E165: 19:44:16.908 | F165: 9.854192352 | G165: 9857 | H165: =IF($B$10=1,IF(MATCH($L165,DATE(YEAR($L165),{1,4,11},1)-WEEKDAY(DATE(YEAR($L165),{1,4,11},7)))=2,1,0),0) -> 0 | I165: 18:44:16.908 | J165: 19:44:16.908 | K165: 04:35:32.877 | L165: 2013-03-24 | M165: 06:34:10.782 | N165: 18:52:18.744 | O165: 82 | P165: 18:44:16.908 | Q165: 9.854158121 | R165: 0 | S165: 9.854158121
C166: 03/25/2013 | D166: 05:33:10 | E166: 19:46:02.776 | F166: 9.785062308 | G166: 9963 | H166: =IF($B$10=1,IF(MATCH($L166,DATE(YEAR($L166),{1,4,11},1)-WEEKDAY(DATE(YEAR($L166),{1,4,11},7)))=2,1,0),0) -> 0 | I166: 18:46:02.776 | J166: 19:46:02.776 | K166: 04:33:09.805 | L166: 2013-03-25 | M166: 06:31:54.090 | N166: 18:53:59.577 | O166: 83 | P166: 18:46:02.776 | Q166: 9.785008054 | R166: 0 | S166: 9.785008054
C167: 03/26/2013 | D167: 05:30:46 | E167: 19:47:48.923 | F167: 9.715577021 | G167: 10069 | H167: =IF($B$10=1,IF(MATCH($L167,DATE(YEAR($L167),{1,4,11},1)-WEEKDAY(DATE(YEAR($L167),{1,4,11},7)))=2,1,0),0) -> 0 | I167: 18:47:48.923 | J167: 19:47:48.923 | K167: 04:30:46.389 | L167: 2013-03-26 | M167: 06:29:37.521 | N167: 18:55:40.279 | O167: 84 | P167: 18:47:48.923 | Q167: 9.715684971 | R167: 0 | S167: 9.715684971
C168: 03/27/2013 | D168: 05:28:23 | E168: 19:49:35.360 | F168: 9.646288891 | G168: 10175 | H168: =IF($B$10=1,IF(MATCH($L168,DATE(YEAR($L168),{1,4,11},1)-WEEKDAY(DATE(YEAR($L168),{1,4,11},7)))=2,1,0),0) -> 0 | I168: 18:49:35.360 | J168: 19:49:35.360 | K168: 04:28:22.656 | L168: 2013-03-27 | M168: 06:27:21.108 | N168: 18:57:20.860 | O168: 85 | P168: 18:49:35.360 | Q168: 9.64619327 | R168: 0 | S168: 9.64619327
C169: 03/28/2013 | D169: 05:25:59 | E169: 19:51:22.099 | F169: 9.576639296 | G169: 10282 | H169: =IF($B$10=1,IF(MATCH($L169,DATE(YEAR($L169),{1,4,11},1)-WEEKDAY(DATE(YEAR($L169),{1,4,11},7)))=2,1,0),0) -> 0 | I169: 18:51:22.099 | J169: 19:51:22.099 | K169: 04:25:58.633 | L169: 2013-03-28 | M169: 06:25:04.879 | N169: 18:59:01.328 | O169: 86 | P169: 18:51:22.099 | Q169: 9.576537446 | R169: 0 | S169: 9.576537446
C170: 03/29/2013 | D170: 05:23:34 | E170: 19:53:09.149 | F170: 9.506625272 | G170: 10389 | H170: =IF($B$10=1,IF(MATCH($L170,DATE(YEAR($L170),{1,4,11},1)-WEEKDAY(DATE(YEAR($L170),{1,4,11},7)))=2,1,0),0) -> 0 | I170: 18:53:09.149 | J170: 19:53:09.149 | K170: 04:23:34.349 | L170: 2013-03-29 | M170: 06:22:48.865 | N170: 19:00:41.693 | O170: 87 | P170: 18:53:09.149 | Q170: 9.506722118 | R170: 0 | S170: 9.506722118
C171: 03/30/2013 | D171: 05:21:10 | E171: 19:54:56.522 | F171: 9.436799525 | G171: 10497 | H171: =IF($B$10=1,IF(MATCH($L171,DATE(YEAR($L171),{1,4,11},1)-WEEKDAY(DATE(YEAR($L171),{1,4,11},7)))=2,1,0),0) -> 0 | I171: 18:54:56.522 | J171: 19:54:56.522 | K171: 04:21:09.829 | L171: 2013-03-30 | M171: 06:20:33.095 | N171: 19:02:21.963 | O171: 88 | P171: 18:54:56.522 | Q171: 9.436752045 | R171: 0 | S171: 9.436752045
C172: 03/31/2013 | D172: 06:18:45 | E172: 20:56:44.226 | F172: 9.366603784 | G172: 14204 | H172: =IF($B$10=1,IF(MATCH($L172,DATE(YEAR($L172),{1,4,11},1)-WEEKDAY(DATE(YEAR($L172),{1,4,11},7)))=2,1,0),0) -> 1 | I172: 18:56:44.226 | J172: 20:56:44.226 | K172: 04:18:45.102 | L172: 2013-03-31 | M172: 07:18:17.601 | N172: 20:04:02.145 | O172: 89 | P172: 18:56:44.226 | Q172: 9.366632154 | R172: 0 | S172: 9.366632154
C173: 04/01/2013 | D173: 06:16:20 | E173: 20:58:32.272 | F173: 9.296313249 | G173: 14312 | H173: =IF($B$10=1,IF(MATCH($L173,DATE(YEAR($L173),{1,4,11},1)-WEEKDAY(DATE(YEAR($L173),{1,4,11},7)))=2,1,0),0) -> 1 | I173: 18:58:32.272 | J173: 20:58:32.272 | K173: 04:16:20.196 | L173: 2013-04-01 | M173: 07:16:02.412 | N173: 20:05:42.247 | O173: 90 | P173: 18:58:32.272 | Q173: 9.296367557 | R173: 0 | S173: 9.296367557
C174: 04/02/2013 | D174: 06:13:55 | E174: 21:00:20.668 | F174: 9.225925506 | G174: 14421 | H174: =IF($B$10=1,IF(MATCH($L174,DATE(YEAR($L174),{1,4,11},1)-WEEKDAY(DATE(YEAR($L174),{1,4,11},7)))=2,1,0),0) -> 1 | I174: 19:00:20.668 | J174: 21:00:20.668 | K174: 04:13:55.137 | L174: 2013-04-02 | M174: 07:13:47.559 | N174: 20:07:22.277 | O174: 91 | P174: 19:00:20.668 | Q174: 9.225963574 | R174: 0 | S174: 9.225963574
C175: 04/03/2013 | D175: 06:11:30 | E175: 21:02:09.422 | F175: 9.155438308 | G175: 14529 | H175: =IF($B$10=1,IF(MATCH($L175,DATE(YEAR($L175),{1,4,11},1)-WEEKDAY(DATE(YEAR($L175),{1,4,11},7)))=2,1,0),0) -> 1 | I175: 19:02:09.422 | J175: 21:02:09.422 | K175: 04:11:29.955 | L175: 2013-04-03 | M175: 07:11:33.072 | N175: 20:09:02.239 | O175: 92 | P175: 19:02:09.422 | Q175: 9.155425762 | R175: 0 | S175: 9.155425762
C176: 04/04/2013 | D176: 06:09:05 | E176: 21:03:58.541 | F176: 9.084849598 | G176: 14639 | H176: =IF($B$10=1,IF(MATCH($L176,DATE(YEAR($L176),{1,4,11},1)-WEEKDAY(DATE(YEAR($L176),{1,4,11},7)))=2,1,0),0) -> 1 | I176: 19:03:58.541 | J176: 21:03:58.541 | K176: 04:09:04.677 | L176: 2013-04-04 | M176: 07:09:18.984 | N176: 20:10:42.141 | O176: 93 | P176: 19:03:58.541 | Q176: 9.084759932 | R176: 0 | S176: 9.084759932
C177: 04/05/2013 | D177: 06:06:39 | E177: 21:05:48.033 | F177: 9.013879741 | G177: 14748 | H177: =IF($B$10=1,IF(MATCH($L177,DATE(YEAR($L177),{1,4,11},1)-WEEKDAY(DATE(YEAR($L177),{1,4,11},7)))=2,1,0),0) -> 1 | I177: 19:05:48.033 | J177: 21:05:48.033 | K177: 04:06:39.333 | L177: 2013-04-05 | M177: 07:07:05.324 | N177: 20:12:21.986 | O177: 94 | P177: 19:05:48.033 | Q177: 9.013972177 | R177: 0 | S177: 9.013972177
C178: 04/06/2013 | D178: 06:04:14 | E178: 21:07:37.902 | F178: 8.943082653 | G178: 14858 | H178: =IF($B$10=1,IF(MATCH($L178,DATE(YEAR($L178),{1,4,11},1)-WEEKDAY(DATE(YEAR($L178),{1,4,11},7)))=2,1,0),0) -> 1 | I178: 19:07:37.902 | J178: 21:07:37.902 | K178: 04:04:13.950 | L178: 2013-04-06 | M178: 07:04:52.124 | N178: 20:14:01.780 | O178: 95 | P178: 19:07:37.902 | Q178: 8.943068898 | R178: 0 | S178: 8.943068898
C179: 04/07/2013 | D179: 06:01:49 | E179: 21:09:28.155 | F179: 8.87217915 | G179: 14968 | H179: =IF($B$10=1,IF(MATCH($L179,DATE(YEAR($L179),{1,4,11},1)-WEEKDAY(DATE(YEAR($L179),{1,4,11},7)))=2,1,0),0) -> 1 | I179: 19:09:28.155 | J179: 21:09:28.155 | K179: 04:01:48.560 | L179: 2013-04-07 | M179: 07:02:39.416 | N179: 20:15:41.525 | O179: 96 | P179: 19:09:28.155 | Q179: 8.872056824 | R179: 0 | S179: 8.872056824
C180: 04/08/2013 | D180: 05:59:23 | E180: 21:11:18.795 | F180: 8.800890296 | G180: 15079 | H180: =IF($B$10=1,IF(MATCH($L180,DATE(YEAR($L180),{1,4,11},1)-WEEKDAY(DATE(YEAR($L180),{1,4,11},7)))=2,1,0),0) -> 1 | I180: 19:11:18.795 | J180: 21:11:18.795 | K180: 03:59:23.190 | L180: 2013-04-08 | M180: 07:00:27.233 | N180: 20:17:21.225 | O180: 97 | P180: 19:11:18.795 | Q180: 8.800943047 | R180: 0 | S180: 8.800943047
C181: 04/09/2013 | D181: 05:56:58 | E181: 21:13:09.825 | F181: 8.729770753 | G181: 15190 | H181: =IF($B$10=1,IF(MATCH($L181,DATE(YEAR($L181),{1,4,11},1)-WEEKDAY(DATE(YEAR($L181),{1,4,11},7)))=2,1,0),0) -> 1 | I181: 19:13:09.825 | J181: 21:13:09.825 | K181: 03:56:57.871 | L181: 2013-04-09 | M181: 06:58:15.606 | N181: 20:19:00.881 | O181: 98 | P181: 19:13:09.825 | Q181: 8.729735039 | R181: 0 | S181: 8.729735039
C182: 04/10/2013 | D182: 05:54:33 | E182: 21:15:01.248 | F182: 8.658542132 | G182: 15301 | H182: =IF($B$10=1,IF(MATCH($L182,DATE(YEAR($L182),{1,4,11},1)-WEEKDAY(DATE(YEAR($L182),{1,4,11},7)))=2,1,0),0) -> 1 | I182: 19:15:01.248 | J182: 21:15:01.248 | K182: 03:54:32.635 | L182: 2013-04-10 | M182: 06:56:04.568 | N182: 20:20:40.494 | O182: 99 | P182: 19:15:01.248 | Q182: 8.658440687 | R182: 0 | S182: 8.658440687
C183: 04/11/2013 | D183: 05:52:08 | E183: 21:16:53.065 | F183: 8.587204122 | G183: 15413 | H183: =IF($B$10=1,IF(MATCH($L183,DATE(YEAR($L183),{1,4,11},1)-WEEKDAY(DATE(YEAR($L183),{1,4,11},7)))=2,1,0),0) -> 1 | I183: 19:16:53.065 | J183: 21:16:53.065 | K183: 03:52:07.511 | L183: 2013-04-11 | M183: 06:53:54.152 | N183: 20:22:20.065 | O183: 100 | P183: 19:16:53.065 | Q183: 8.587068318 | R183: 0 | S183: 8.587068318
C184: 04/12/2013 | D184: 05:49:43 | E184: 21:18:45.276 | F184: 8.51575673 | G184: 15525 | H184: =IF($B$10=1,IF(MATCH($L184,DATE(YEAR($L184),{1,4,11},1)-WEEKDAY(DATE(YEAR($L184),{1,4,11},7)))=2,1,0),0) -> 1 | I184: 19:18:45.276 | J184: 21:18:45.276 | K184: 03:49:42.532 | L184: 2013-04-12 | M184: 06:51:44.392 | N184: 20:23:59.592 | O184: 101 | P184: 19:18:45.276 | Q184: 8.515626726 | R184: 0 | S184: 8.515626726
C185: 04/13/2013 | D185: 05:47:18 | E185: 21:20:37.879 | F185: 8.444200294 | G185: 15638 | H185: =IF($B$10=1,IF(MATCH($L185,DATE(YEAR($L185),{1,4,11},1)-WEEKDAY(DATE(YEAR($L185),{1,4,11},7)))=2,1,0),0) -> 1 | I185: 19:20:37.879 | J185: 21:20:37.879 | K185: 03:47:17.730 | L185: 2013-04-13 | M185: 06:49:35.321 | N185: 20:25:39.073 | O185: 102 | P185: 19:20:37.879 | Q185: 8.444125209 | R185: 0 | S185: 8.444125209
C186: 04/14/2013 | D186: 05:44:53 | E186: 21:22:30.872 | F186: 8.372535512 | G186: 15751 | H186: =IF($B$10=1,IF(MATCH($L186,DATE(YEAR($L186),{1,4,11},1)-WEEKDAY(DATE(YEAR($L186),{1,4,11},7)))=2,1,0),0) -> 1 | I186: 19:22:30.872 | J186: 21:22:30.872 | K186: 03:44:53.137 | L186: 2013-04-14 | M186: 06:47:26.975 | N186: 20:27:18.506 | O186: 103 | P186: 19:22:30.872 | Q186: 8.372573589 | R186: 0 | S186: 8.372573589
C187: 04/15/2013 | D187: 05:42:29 | E187: 21:24:24.252 | F187: 8.301041228 | G187: 15864 | H187: =IF($B$10=1,IF(MATCH($L187,DATE(YEAR($L187),{1,4,11},1)-WEEKDAY(DATE(YEAR($L187),{1,4,11},7)))=2,1,0),0) -> 1 | I187: 19:24:24.252 | J187: 21:24:24.252 | K187: 03:42:28.788 | L187: 2013-04-15 | M187: 06:45:19.387 | N187: 20:28:57.886 | O187: 104 | P187: 19:24:24.252 | Q187: 8.300982251 | R187: 0 | S187: 8.300982251
C188: 04/16/2013 | D188: 05:40:05 | E188: 21:26:18.012 | F188: 8.229441125 | G188: 15978 | H188: =IF($B$10=1,IF(MATCH($L188,DATE(YEAR($L188),{1,4,11},1)-WEEKDAY(DATE(YEAR($L188),{1,4,11},7)))=2,1,0),0) -> 1 | I188: 19:26:18.012 | J188: 21:26:18.012 | K188: 03:40:04.716 | L188: 2013-04-16 | M188: 06:43:12.593 | N188: 20:30:37.208 | O188: 105 | P188: 19:26:18.012 | Q188: 8.229362173 | R188: 0 | S188: 8.229362173
C189: 04/17/2013 | D189: 05:37:41 | E189: 21:28:12.147 | F189: 8.157737078 | G189: 16092 | H189: =IF($B$10=1,IF(MATCH($L189,DATE(YEAR($L189),{1,4,11},1)-WEEKDAY(DATE(YEAR($L189),{1,4,11},7)))=2,1,0),0) -> 1 | I189: 19:28:12.147 | J189: 21:28:12.147 | K189: 03:37:40.956 | L189: 2013-04-17 | M189: 06:41:06.628 | N189: 20:32:16.465 | O189: 106 | P189: 19:28:12.147 | Q189: 8.157724958 | R189: 0 | S189: 8.157724958
C190: 04/18/2013 | D190: 05:35:18 | E190: 21:30:06.647 | F190: 8.08620917 | G190: 16207 | H190: =IF($B$10=1,IF(MATCH($L190,DATE(YEAR($L190),{1,4,11},1)-WEEKDAY(DATE(YEAR($L190),{1,4,11},7)))=2,1,0),0) -> 1 | I190: 19:30:06.647 | J190: 21:30:06.647 | K190: 03:35:17.545 | L190: 2013-04-18 | M190: 06:39:01.529 | N190: 20:33:55.650 | O190: 107 | P190: 19:30:06.647 | Q190: 8.086082867 | R190: 0 | S190: 8.086082867
C191: 04/19/2013 | D191: 05:32:55 | E191: 21:32:01.503 | F191: 8.014582386 | G191: 16322 | H191: =IF($B$10=1,IF(MATCH($L191,DATE(YEAR($L191),{1,4,11},1)-WEEKDAY(DATE(YEAR($L191),{1,4,11},7)))=2,1,0),0) -> 1 | I191: 19:32:01.503 | J191: 21:32:01.503 | K191: 03:32:54.519 | L191: 2013-04-19 | M191: 06:36:57.333 | N191: 20:35:34.753 | O191: 108 | P191: 19:32:01.503 | Q191: 8.014448854 | R191: 0 | S191: 8.014448854
C192: 04/20/2013 | D192: 05:30:32 | E192: 21:33:56.704 | F192: 7.942859963 | G192: 16437 | H192: =IF($B$10=1,IF(MATCH($L192,DATE(YEAR($L192),{1,4,11},1)-WEEKDAY(DATE(YEAR($L192),{1,4,11},7)))=2,1,0),0) -> 1 | I192: 19:33:56.704 | J192: 21:33:56.704 | K192: 03:30:31.916 | L192: 2013-04-20 | M192: 06:34:54.076 | N192: 20:37:13.764 | O192: 109 | P192: 19:33:56.704 | Q192: 7.942836604 | R192: 0 | S192: 7.942836604
C193: 04/21/2013 | D193: 05:28:10 | E193: 21:35:52.236 | F193: 7.871323413 | G193: 16552 | H193: =IF($B$10=1,IF(MATCH($L193,DATE(YEAR($L193),{1,4,11},1)-WEEKDAY(DATE(YEAR($L193),{1,4,11},7)))=2,1,0),0) -> 1 | I193: 19:35:52.236 | J193: 21:35:52.236 | K193: 03:28:09.774 | L193: 2013-04-21 | M193: 06:32:51.796 | N193: 20:38:52.672 | O193: 110 | P193: 19:35:52.236 | Q193: 7.871260563 | R193: 0 | S193: 7.871260563
C194: 04/22/2013 | D194: 05:25:48 | E194: 21:37:48.083 | F194: 7.799699212 | G194: 16668 | H194: =IF($B$10=1,IF(MATCH($L194,DATE(YEAR($L194),{1,4,11},1)-WEEKDAY(DATE(YEAR($L194),{1,4,11},7)))=2,1,0),0) -> 1 | I194: 19:37:48.083 | J194: 21:37:48.083 | K194: 03:25:48.132 | L194: 2013-04-22 | M194: 06:30:50.531 | N194: 20:40:31.461 | O194: 111 | P194: 19:37:48.083 | Q194: 7.79973598 | R194: 0 | S194: 7.79973598
C195: 04/23/2013 | D195: 05:23:27 | E195: 21:39:44.228 | F195: 7.728269934 | G195: 16784 | H195: =IF($B$10=1,IF(MATCH($L195,DATE(YEAR($L195),{1,4,11},1)-WEEKDAY(DATE(YEAR($L195),{1,4,11},7)))=2,1,0),0) -> 1 | I195: 19:39:44.228 | J195: 21:39:44.228 | K195: 03:23:27.032 | L195: 2013-04-23 | M195: 06:28:50.321 | N195: 20:42:10.119 | O195: 112 | P195: 19:39:44.228 | Q195: 7.728278943 | R195: 0 | S195: 7.728278943
C196: 04/24/2013 | D196: 05:21:07 | E196: 21:41:40.653 | F196: 7.657040942 | G196: 16901 | H196: =IF($B$10=1,IF(MATCH($L196,DATE(YEAR($L196),{1,4,11},1)-WEEKDAY(DATE(YEAR($L196),{1,4,11},7)))=2,1,0),0) -> 1 | I196: 19:41:40.653 | J196: 21:41:40.653 | K196: 03:21:06.516 | L196: 2013-04-24 | M196: 06:26:51.204 | N196: 20:43:48.629 | O196: 113 | P196: 19:41:40.653 | Q196: 7.656906416 | R196: 0 | S196: 7.656906416
C197: 04/25/2013 | D197: 05:18:47 | E197: 21:43:37.335 | F197: 7.585740409 | G197: 17017 | H197: =IF($B$10=1,IF(MATCH($L197,DATE(YEAR($L197),{1,4,11},1)-WEEKDAY(DATE(YEAR($L197),{1,4,11},7)))=2,1,0),0) -> 1 | I197: 19:43:37.335 | J197: 21:43:37.335 | K197: 03:18:46.625 | L197: 2013-04-25 | M197: 06:24:53.221 | N197: 20:45:26.972 | O197: 114 | P197: 19:43:37.335 | Q197: 7.585636279 | R197: 0 | S197: 7.585636279
C198: 04/26/2013 | D198: 05:16:27 | E198: 21:45:34.250 | F198: 7.514374894 | G198: 17134 | H198: =IF($B$10=1,IF(MATCH($L198,DATE(YEAR($L198),{1,4,11},1)-WEEKDAY(DATE(YEAR($L198),{1,4,11},7)))=2,1,0),0) -> 1 | I198: 19:45:34.250 | J198: 21:45:34.250 | K198: 03:16:27.405 | L198: 2013-04-26 | M198: 06:22:56.411 | N198: 20:47:05.130 | O198: 115 | P198: 19:45:34.250 | Q198: 7.514487368 | R198: 0 | S198: 7.514487368
C199: 04/27/2013 | D199: 05:14:09 | E199: 21:47:31.374 | F199: 7.443507152 | G199: 17251 | H199: =IF($B$10=1,IF(MATCH($L199,DATE(YEAR($L199),{1,4,11},1)-WEEKDAY(DATE(YEAR($L199),{1,4,11},7)))=2,1,0),0) -> 1 | I199: 19:47:31.374 | J199: 21:47:31.374 | K199: 03:14:08.900 | L199: 2013-04-27 | M199: 06:21:00.816 | N199: 20:48:43.080 | O199: 116 | P199: 19:47:31.374 | Q199: 7.443479511 | R199: 0 | S199: 7.443479511
C200: 04/28/2013 | D200: 05:11:51 | E200: 21:49:28.678 | F200: 7.372589484 | G200: 17369 | H200: =IF($B$10=1,IF(MATCH($L200,DATE(YEAR($L200),{1,4,11},1)-WEEKDAY(DATE(YEAR($L200),{1,4,11},7)))=2,1,0),0) -> 1 | I200: 19:49:28.678 | J200: 21:49:28.678 | K200: 03:11:51.159 | L200: 2013-04-28 | M200: 06:19:06.477 | N200: 20:50:20.801 | O200: 117 | P200: 19:49:28.678 | Q200: 7.372633577 | R200: 0 | S200: 7.372633577
C201: 04/29/2013 | D201: 05:09:34 | E201: 21:51:26.130 | F201: 7.301908204 | G201: 17486 | H201: =IF($B$10=1,IF(MATCH($L201,DATE(YEAR($L201),{1,4,11},1)-WEEKDAY(DATE(YEAR($L201),{1,4,11},7)))=2,1,0),0) -> 1 | I201: 19:51:26.130 | J201: 21:51:26.130 | K201: 03:09:34.228 | L201: 2013-04-29 | M201: 06:17:13.437 | N201: 20:51:58.268 | O201: 118 | P201: 19:51:26.130 | Q201: 7.301971506 | R201: 0 | S201: 7.301971506
C202: 04/30/2013 | D202: 05:07:18 | E202: 21:53:23.699 | F202: 7.23147256 | G202: 17604 | H202: =IF($B$10=1,IF(MATCH($L202,DATE(YEAR($L202),{1,4,11},1)-WEEKDAY(DATE(YEAR($L202),{1,4,11},7)))=2,1,0),0) -> 1 | I202: 19:53:23.699 | J202: 21:53:23.699 | K202: 03:07:18.158 | L202: 2013-04-30 | M202: 06:15:21.738 | N202: 20:53:35.455 | O202: 119 | P202: 19:53:23.699 | Q202: 7.231516359 | R202: 0 | S202: 7.231516359
C203: 05/01/2013 | D203: 05:05:03 | E203: 21:55:21.347 | F203: 7.161292525 | G203: 17721 | H203: =IF($B$10=1,IF(MATCH($L203,DATE(YEAR($L203),{1,4,11},1)-WEEKDAY(DATE(YEAR($L203),{1,4,11},7)))=2,1,0),0) -> 1 | I203: 19:55:21.347 | J203: 21:55:21.347 | K203: 03:05:02.999 | L203: 2013-05-01 | M203: 06:13:31.422 | N203: 20:55:12.333 | O203: 120 | P203: 19:55:21.347 | Q203: 7.161292354 | R203: 0 | S203: 7.161292354
C204: 05/02/2013 | D204: 05:02:49 | E204: 21:57:19.036 | F204: 7.091378828 | G204: 17839 | H204: =IF($B$10=1,IF(MATCH($L204,DATE(YEAR($L204),{1,4,11},1)-WEEKDAY(DATE(YEAR($L204),{1,4,11},7)))=2,1,0),0) -> 1 | I204: 19:57:19.036 | J204: 21:57:19.036 | K204: 03:02:48.806 | L204: 2013-05-02 | M204: 06:11:42.535 | N204: 20:56:48.872 | O204: 121 | P204: 19:57:19.036 | Q204: 7.091324909 | R204: 0 | S204: 7.091324909
C205: 05/03/2013 | D205: 05:00:36 | E205: 21:59:16.725 | F205: 7.021742972 | G205: 17957 | H205: =IF($B$10=1,IF(MATCH($L205,DATE(YEAR($L205),{1,4,11},1)-WEEKDAY(DATE(YEAR($L205),{1,4,11},7)))=2,1,0),0) -> 1 | I205: 19:59:16.725 | J205: 21:59:16.725 | K205: 03:00:35.632 | L205: 2013-05-03 | M205: 06:09:55.119 | N205: 20:58:25.042 | O205: 122 | P205: 19:59:16.725 | Q205: 7.021640683 | R205: 0 | S205: 7.021640683
C206: 05/04/2013 | D206: 04:58:24 | E206: 22:01:14.370 | F206: 6.952397259 | G206: 18074 | H206: =IF($B$10=1,IF(MATCH($L206,DATE(YEAR($L206),{1,4,11},1)-WEEKDAY(DATE(YEAR($L206),{1,4,11},7)))=2,1,0),0) -> 1 | I206: 20:01:14.370 | J206: 22:01:14.370 | K206: 02:58:23.533 | L206: 2013-05-04 | M206: 06:08:09.220 | N206: 21:00:00.809 | O206: 123 | P206: 20:01:14.370 | Q206: 6.952267614 | R206: 0 | S206: 6.952267614
C207: 05/05/2013 | D207: 04:56:13 | E207: 22:03:11.923 | F207: 6.883354811 | G207: 18192 | H207: =IF($B$10=1,IF(MATCH($L207,DATE(YEAR($L207),{1,4,11},1)-WEEKDAY(DATE(YEAR($L207),{1,4,11},7)))=2,1,0),0) -> 1 | I207: 20:03:11.923 | J207: 22:03:11.923 | K207: 02:56:12.569 | L207: 2013-05-05 | M207: 06:06:24.883 | N207: 21:01:36.137 | O207: 124 | P207: 20:03:11.923 | Q207: 6.883234961 | R207: 0 | S207: 6.883234961
C208: 05/06/2013 | D208: 04:54:03 | E208: 22:05:09.333 | F208: 6.81462959 | G208: 18309 | H208: =IF($B$10=1,IF(MATCH($L208,DATE(YEAR($L208),{1,4,11},1)-WEEKDAY(DATE(YEAR($L208),{1,4,11},7)))=2,1,0),0) -> 1 | I208: 20:05:09.333 | J208: 22:05:09.333 | K208: 02:54:02.798 | L208: 2013-05-06 | M208: 06:04:42.153 | N208: 21:03:10.989 | O208: 125 | P208: 20:05:09.333 | Q208: 6.814573341 | R208: 0 | S208: 6.814573341
C209: 05/07/2013 | D209: 04:51:54 | E209: 22:07:06.549 | F209: 6.74623642 | G209: 18427 | H209: =IF($B$10=1,IF(MATCH($L209,DATE(YEAR($L209),{1,4,11},1)-WEEKDAY(DATE(YEAR($L209),{1,4,11},7)))=2,1,0),0) -> 1 | I209: 20:07:06.549 | J209: 22:07:06.549 | K209: 02:51:54.282 | L209: 2013-05-07 | M209: 06:03:01.076 | N209: 21:04:45.326 | O209: 126 | P209: 20:07:06.549 | Q209: 6.746314768 | R209: 0 | S209: 6.746314768
C210: 05/08/2013 | D210: 04:49:47 | E210: 22:09:03.512 | F210: 6.678468778 | G210: 18544 | H210: =IF($B$10=1,IF(MATCH($L210,DATE(YEAR($L210),{1,4,11},1)-WEEKDAY(DATE(YEAR($L210),{1,4,11},7)))=2,1,0),0) -> 1 | I210: 20:09:03.512 | J210: 22:09:03.512 | K210: 02:49:47.086 | L210: 2013-05-08 | M210: 06:01:21.699 | N210: 21:06:19.108 | O210: 127 | P210: 20:09:03.512 | Q210: 6.678492686 | R210: 0 | S210: 6.678492686
C211: =TEXT(L211,"mm/dd/yyyy") -> 05/09/2013 | D211: =TEXT(dawn($B$4,$B$5,YEAR($C211+1),MONTH($C211+1),DAY($C211+1),$B$9,$H211,$D$6),"hh:mm:ss") -> 04:47:41 | E211: =dusk($B$4,$B$5,YEAR(C211),MONTH(C211),DAY(C211),$B$9,$H211,$D$5) -> 22:11:00.164 | F211: =((TIME(23,59,59.999)-E211)+D211)*24 -> 6.611065486 | G211: 18660 | H211: =IF($B$10=1,IF(MATCH($L211,DATE(YEAR($L211),{1,4,11},1)-WEEKDAY(DATE(YEAR($L211),{1,4,11},7)))=2,1,0),0) -> 1 | I211: =dusk($B$4,$B$5,YEAR($C211),MONTH($C211),DAY($C211),0,0,$D$5) -> 20:11:00.164 | J211: =dusk($B$4,$B$5,YEAR($C211),MONTH($C211),DAY($C211),$B$9,$H211,$D$5) -> 22:11:00.164 | K211: 02:47:41.275 | L211: 2013-05-09 | M211: 05:59:44.068 | N211: 21:07:52.292 | O211: 128 | P211: 20:11:00.164 | Q211: 6.611142003 | R211: 0 | S211: 6.611142003
C212: 05/10/2013 | D212: 04:45:37 | E212: 22:12:56.441 | F212: 6.544321831 | G212: =HOUR(E212-$C$77)*3600+MINUTE(E212-$C$77)*60+SECOND(E212-$C$77) -> 18776 | H212: =IF($B$10=1,IF(MATCH($L212,DATE(YEAR($L212),{1,4,11},1)-WEEKDAY(DATE(YEAR($L212),{1,4,11},7)))=2,1,0),0) -> 1 | I212: 20:12:56.441 | J212: 22:12:56.441 | K212: =dawn($B$4,$B$5,YEAR($C212+1),MONTH($C212+1),DAY($C212+1),0,0,$D$6) -> 02:45:36.918 | L212: 2013-05-10 | M212: =dawn($B$4,$B$5,YEAR($C212+1),MONTH($C212+1),DAY($C212+1),$B$9,$H212,0) -> 05:58:08.231 | N212: =dusk($B$4,$B$5,YEAR(C212),MONTH(C212),DAY(C212),$B$9,$H212,0) -> 21:09:24.833 | O212: 129 | P212: =MIN(dusk($B$4,$B$5,YEAR(C212),MONTH(C212),DAY(C212),0,0,$D$5),E212) -> 20:12:56.441 | Q212: =IF(I212>K212,((TIME(23,59,59.999)-I212)+K212)*24,(K212-I212)*24) -> 6.544299123 | R212: =(E212-J212)*24 -> 0 | S212: =(Q212-R212) -> 6.544299123
C213: 05/11/2013 | D213: 04:43:34 | E213: 22:14:52.278 | F213: 6.477978468 | G213: 18892 | H213: =IF($B$10=1,IF(MATCH($L213,DATE(YEAR($L213),{1,4,11},1)-WEEKDAY(DATE(YEAR($L213),{1,4,11},7)))=2,1,0),0) -> 1 | I213: 20:14:52.278 | J213: 22:14:52.278 | K213: 02:43:34.085 | L213: =L212+1 -> 2013-05-11 | M213: 05:56:34.235 | N213: 21:10:56.684 | O213: =O212+1 -> 130 | P213: 20:14:52.278 | Q213: 6.478001972 | R213: 0 | S213: 6.478001972
C214: 05/12/2013 | D214: 04:41:33 | E214: 22:16:47.603 | F214: 6.412332546 | G214: 19008 | H214: =IF($B$10=1,IF(MATCH($L214,DATE(YEAR($L214),{1,4,11},1)-WEEKDAY(DATE(YEAR($L214),{1,4,11},7)))=2,1,0),0) -> 1 | I214: 20:16:47.603 | J214: 22:16:47.603 | K214: 02:41:32.847 | L214: 2013-05-12 | M214: 05:55:02.127 | N214: 21:12:27.798 | O214: 131 | P214: 20:16:47.603 | Q214: 6.412290023 | R214: 0 | S214: 6.412290023
C215: 05/13/2013 | D215: 04:39:33 | E215: 22:18:42.344 | F215: 6.347126604 | G215: 19122 | H215: =IF($B$10=1,IF(MATCH($L215,DATE(YEAR($L215),{1,4,11},1)-WEEKDAY(DATE(YEAR($L215),{1,4,11},7)))=2,1,0),0) -> 1 | I215: 20:18:42.344 | J215: 22:18:42.344 | K215: 02:39:33.280 | L215: 2013-05-13 | M215: 05:53:31.955 | N215: 21:13:58.125 | O215: 132 | P215: 20:18:42.344 | Q215: 6.347204316 | R215: 0 | S215: 6.347204316
C216: 05/14/2013 | D216: 04:37:35 | E216: 22:20:36.425 | F216: 6.282659686 | G216: 19236 | H216: =IF($B$10=1,IF(MATCH($L216,DATE(YEAR($L216),{1,4,11},1)-WEEKDAY(DATE(YEAR($L216),{1,4,11},7)))=2,1,0),0) -> 1 | I216: 20:20:36.425 | J216: 22:20:36.425 | K216: 02:37:35.460 | L216: 2013-05-14 | M216: 05:52:03.767 | N216: 21:15:27.614 | O216: 133 | P216: 20:20:36.425 | Q216: 6.282787472 | R216: 0 | S216: 6.282787472
C217: 05/15/2013 | D217: 04:35:39 | E217: 22:22:29.766 | F217: 6.218954013 | G217: 19350 | H217: =IF($B$10=1,IF(MATCH($L217,DATE(YEAR($L217),{1,4,11},1)-WEEKDAY(DATE(YEAR($L217),{1,4,11},7)))=2,1,0),0) -> 1 | I217: 20:22:29.766 | J217: 22:22:29.766 | K217: 02:35:39.467 | L217: 2013-05-15 | M217: 05:50:37.611 | N217: 21:16:56.210 | O217: 134 | P217: 20:22:29.766 | Q217: 6.219083705 | R217: 0 | S217: 6.219083705
C218: 05/16/2013 | D218: 04:33:45 | E218: 22:24:22.282 | F218: 6.156032759 | G218: 19462 | H218: =IF($B$10=1,IF(MATCH($L218,DATE(YEAR($L218),{1,4,11},1)-WEEKDAY(DATE(YEAR($L218),{1,4,11},7)))=2,1,0),0) -> 1 | I218: 20:24:22.282 | J218: 22:24:22.282 | K218: 02:33:45.382 | L218: 2013-05-16 | M218: 05:49:13.535 | N218: 21:18:23.859 | O218: 135 | P218: 20:24:22.282 | Q218: 6.15613882 | R218: 0 | S218: 6.15613882
C219: 05/17/2013 | D219: 04:31:53 | E219: 22:26:13.888 | F219: 6.093920045 | G219: 19574 | H219: =IF($B$10=1,IF(MATCH($L219,DATE(YEAR($L219),{1,4,11},1)-WEEKDAY(DATE(YEAR($L219),{1,4,11},7)))=2,1,0),0) -> 1 | I219: 20:26:13.888 | J219: 22:26:13.888 | K219: 02:31:53.289 | L219: 2013-05-17 | M219: 05:47:51.587 | N219: 21:19:50.504 | O219: 136 | P219: 20:26:13.888 | Q219: 6.094000214 | R219: 0 | S219: 6.094000214
C220: 05/18/2013 | D220: 04:30:03 | E220: 22:28:04.493 | F220: 6.032640934 | G220: 19684 | H220: =IF($B$10=1,IF(MATCH($L220,DATE(YEAR($L220),{1,4,11},1)-WEEKDAY(DATE(YEAR($L220),{1,4,11},7)))=2,1,0),0) -> 1 | I220: 20:28:04.493 | J220: 22:28:04.493 | K220: 02:30:03.273 | L220: 2013-05-18 | M220: 05:46:31.814 | N220: 21:21:16.088 | O220: 137 | P220: 20:28:04.493 | Q220: 6.03271686 | R220: 0 | S220: 6.03271686
C221: 05/19/2013 | D221: 04:28:15 | E221: 22:29:54.003 | F221: 5.972221412 | G221: 19794 | H221: =IF($B$10=1,IF(MATCH($L221,DATE(YEAR($L221),{1,4,11},1)-WEEKDAY(DATE(YEAR($L221),{1,4,11},7)))=2,1,0),0) -> 1 | I221: 20:29:54.003 | J221: 22:29:54.003 | K221: 02:28:15.424 | L221: 2013-05-19 | M221: 05:45:14.264 | N221: 21:22:40.551 | O221: 138 | P221: 20:29:54.003 | Q221: 5.972339289 | R221: 0 | S221: 5.972339289
C222: 05/20/2013 | D222: 04:26:30 | E222: 22:31:42.322 | F222: 5.91296615 | G222: 19902 | H222: =IF($B$10=1,IF(MATCH($L222,DATE(YEAR($L222),{1,4,11},1)-WEEKDAY(DATE(YEAR($L222),{1,4,11},7)))=2,1,0),0) -> 1 | I222: 20:31:42.322 | J222: 22:31:42.322 | K222: 02:26:29.832 | L222: 2013-05-20 | M222: 05:43:58.983 | N222: 21:24:03.833 | O222: 139 | P222: 20:31:42.322 | Q222: 5.912919556 | R222: 0 | S222: 5.912919556
C223: 05/21/2013 | D223: 04:24:47 | E223: 22:33:29.349 | F223: 5.854625145 | G223: 20009 | H223: =IF($B$10=1,IF(MATCH($L223,DATE(YEAR($L223),{1,4,11},1)-WEEKDAY(DATE(YEAR($L223),{1,4,11},7)))=2,1,0),0) -> 1 | I223: 20:33:29.349 | J223: 22:33:29.349 | K223: 02:24:46.590 | L223: 2013-05-21 | M223: 05:42:46.020 | N223: 21:25:25.871 | O223: 140 | P223: 20:33:29.349 | Q223: 5.854511199 | R223: 0 | S223: 5.854511199
C224: 05/22/2013 | D224: 04:23:06 | E224: 22:35:14.983 | F224: 5.797227024 | G224: 20115 | H224: =IF($B$10=1,IF(MATCH($L224,DATE(YEAR($L224),{1,4,11},1)-WEEKDAY(DATE(YEAR($L224),{1,4,11},7)))=2,1,0),0) -> 1 | I224: 20:35:14.983 | J224: 22:35:14.983 | K224: 02:23:05.792 | L224: 2013-05-22 | M224: 05:41:35.418 | N224: 21:26:46.603 | O224: 141 | P224: 20:35:14.983 | Q224: 5.797169183 | R224: 0 | S224: 5.797169183
C225: 05/23/2013 | D225: 04:21:28 | E225: 22:36:59.116 | F225: 5.741079004 | G225: 20219 | H225: =IF($B$10=1,IF(MATCH($L225,DATE(YEAR($L225),{1,4,11},1)-WEEKDAY(DATE(YEAR($L225),{1,4,11},7)))=2,1,0),0) -> 1 | I225: 20:36:59.116 | J225: 22:36:59.116 | K225: 02:21:27.535 | L225: 2013-05-23 | M225: 05:40:27.226 | N225: 21:28:05.964 | O225: 142 | P225: 20:36:59.116 | Q225: 5.740949835 | R225: 0 | S225: 5.740949835
C226: 05/24/2013 | D226: 04:19:52 | E226: 22:38:41.639 | F226: 5.685933518 | G226: 20322 | H226: =IF($B$10=1,IF(MATCH($L226,DATE(YEAR($L226),{1,4,11},1)-WEEKDAY(DATE(YEAR($L226),{1,4,11},7)))=2,1,0),0) -> 1 | I226: 20:38:41.639 | J226: 22:38:41.639 | K226: 02:19:51.918 | L226: 2013-05-24 | M226: 05:39:21.486 | N226: 21:29:23.889 | O226: 143 | P226: 20:38:41.639 | Q226: 5.685910762 | R226: 0 | S226: 5.685910762
C227: 05/25/2013 | D227: 04:18:19 | E227: 22:40:22.443 | F227: 5.632099272 | G227: 20422 | H227: =IF($B$10=1,IF(MATCH($L227,DATE(YEAR($L227),{1,4,11},1)-WEEKDAY(DATE(YEAR($L227),{1,4,11},7)))=2,1,0),0) -> 1 | I227: 20:40:22.443 | J227: 22:40:22.443 | K227: 02:18:19.041 | L227: 2013-05-25 | M227: 05:38:18.243 | N227: 21:30:40.314 | O227: 144 | P227: 20:40:22.443 | Q227: 5.632110751 | R227: 0 | S227: 5.632110751
C228: 05/26/2013 | D228: 04:16:49 | E228: 22:42:01.412 | F228: 5.579607854 | G228: 20521 | H228: =IF($B$10=1,IF(MATCH($L228,DATE(YEAR($L228),{1,4,11},1)-WEEKDAY(DATE(YEAR($L228),{1,4,11},7)))=2,1,0),0) -> 1 | I228: 20:42:01.412 | J228: 22:42:01.412 | K228: 02:16:49.007 | L228: 2013-05-26 | M228: 05:37:17.540 | N228: 21:31:55.170 | O228: 145 | P228: 20:42:01.412 | Q228: 5.579609661 | R228: 0 | S228: 5.579609661
C229: 05/27/2013 | D229: 04:15:22 | E229: 22:43:38.431 | F229: 5.528491443 | G229: 20618 | H229: =IF($B$10=1,IF(MATCH($L229,DATE(YEAR($L229),{1,4,11},1)-WEEKDAY(DATE(YEAR($L229),{1,4,11},7)))=2,1,0),0) -> 1 | I229: 20:43:38.431 | J229: 22:43:38.431 | K229: 02:15:21.917 | L229: 2013-05-27 | M229: 05:36:19.420 | N229: 21:33:08.392 | O229: 146 | P229: 20:43:38.431 | Q229: 5.528468287 | R229: 0 | S229: 5.528468287
C230: 05/28/2013 | D230: 04:13:58 | E230: 22:45:13.382 | F230: 5.478782737 | G230: 20713 | H230: =IF($B$10=1,IF(MATCH($L230,DATE(YEAR($L230),{1,4,11},1)-WEEKDAY(DATE(YEAR($L230),{1,4,11},7)))=2,1,0),0) -> 1 | I230: 20:45:13.382 | J230: 22:45:13.382 | K230: 02:13:57.876 | L230: 2013-05-28 | M230: 05:35:23.922 | N230: 21:34:19.913 | O230: 147 | P230: 20:45:13.382 | Q230: 5.478748218 | R230: 0 | S230: 5.478748218
C231: 05/29/2013 | D231: 04:12:37 | E231: 22:46:46.146 | F231: 5.430514866 | G231: 20806 | H231: =IF($B$10=1,IF(MATCH($L231,DATE(YEAR($L231),{1,4,11},1)-WEEKDAY(DATE(YEAR($L231),{1,4,11},7)))=2,1,0),0) -> 1 | I231: 20:46:46.146 | J231: 22:46:46.146 | K231: 02:12:36.988 | L231: 2013-05-29 | M231: 05:34:31.086 | N231: 21:35:29.665 | O231: 148 | P231: 20:46:46.146 | Q231: 5.430511666 | R231: 0 | S231: 5.430511666
C232: 05/30/2013 | D232: 04:11:19 | E232: 22:48:16.603 | F232: 5.383721302 | G232: 20897 | H232: =IF($B$10=1,IF(MATCH($L232,DATE(YEAR($L232),{1,4,11},1)-WEEKDAY(DATE(YEAR($L232),{1,4,11},7)))=2,1,0),0) -> 1 | I232: 20:48:16.603 | J232: 22:48:16.603 | K232: 02:11:19.360 | L232: 2013-05-30 | M232: 05:33:40.950 | N232: 21:36:37.580 | O232: 149 | P232: 20:48:16.603 | Q232: 5.383821284 | R232: 0 | S232: 5.383821284
C233: 05/31/2013 | D233: 04:10:05 | E233: 22:49:44.631 | F233: 5.338713533 | G233: 20985 | H233: =IF($B$10=1,IF(MATCH($L233,DATE(YEAR($L233),{1,4,11},1)-WEEKDAY(DATE(YEAR($L233),{1,4,11},7)))=2,1,0),0) -> 1 | I233: 20:49:44.631 | J233: 22:49:44.631 | K233: 02:10:05.095 | L233: 2013-05-31 | M233: 05:32:53.551 | N233: 21:37:43.591 | O233: 150 | P233: 20:49:44.631 | Q233: 5.33873996 | R233: 0 | S233: 5.33873996
C234: 06/01/2013 | D234: 04:08:54 | E234: 22:51:10.109 | F234: 5.295247623 | G234: 21070 | H234: =IF($B$10=1,IF(MATCH($L234,DATE(YEAR($L234),{1,4,11},1)-WEEKDAY(DATE(YEAR($L234),{1,4,11},7)))=2,1,0),0) -> 1 | I234: 20:51:10.109 | J234: 22:51:10.109 | K234: 02:08:54.299 | L234: 2013-06-01 | M234: 05:32:08.923 | N234: 21:38:47.632 | O234: 151 | P234: 20:51:10.109 | Q234: 5.295330592 | R234: 0 | S234: 5.295330592
C235: 06/02/2013 | D235: 04:07:47 | E235: 22:52:32.913 | F235: 5.253635207 | G235: 21153 | H235: =IF($B$10=1,IF(MATCH($L235,DATE(YEAR($L235),{1,4,11},1)-WEEKDAY(DATE(YEAR($L235),{1,4,11},7)))=2,1,0),0) -> 1 | I235: 20:52:32.913 | J235: 22:52:32.913 | K235: 02:07:47.074 | L235: 2013-06-02 | M235: 05:31:27.098 | N235: 21:39:49.636 | O235: 152 | P235: 20:52:32.913 | Q235: 5.253655847 | R235: 0 | S235: 5.253655847
C236: 06/03/2013 | D236: 04:06:44 | E236: 22:53:52.924 | F236: 5.213910028 | G236: 21233 | H236: =IF($B$10=1,IF(MATCH($L236,DATE(YEAR($L236),{1,4,11},1)-WEEKDAY(DATE(YEAR($L236),{1,4,11},7)))=2,1,0),0) -> 1 | I236: 20:53:52.924 | J236: 22:53:52.924 | K236: 02:06:43.524 | L236: 2013-06-03 | M236: 05:30:48.108 | N236: 21:40:49.538 | O236: 153 | P236: 20:53:52.924 | Q236: 5.2137779 | R236: 0 | S236: 5.2137779
C237: 06/04/2013 | D237: 04:05:44 | E237: 22:55:10.020 | F237: 5.175827807 | G237: 21310 | H237: =IF($B$10=1,IF(MATCH($L237,DATE(YEAR($L237),{1,4,11},1)-WEEKDAY(DATE(YEAR($L237),{1,4,11},7)))=2,1,0),0) -> 1 | I237: 20:55:10.020 | J237: 22:55:10.020 | K237: 02:05:43.749 | L237: 2013-06-04 | M237: 05:30:11.982 | N237: 21:41:47.271 | O237: 154 | P237: 20:55:10.020 | Q237: 5.175758157 | R237: 0 | S237: 5.175758157
C238: 06/05/2013 | D238: 04:04:48 | E238: 22:56:24.082 | F238: 5.139699441 | G238: 21384 | H238: =IF($B$10=1,IF(MATCH($L238,DATE(YEAR($L238),{1,4,11},1)-WEEKDAY(DATE(YEAR($L238),{1,4,11},7)))=2,1,0),0) -> 1 | I238: 20:56:24.082 | J238: 22:56:24.082 | K238: 02:04:47.847 | L238: 2013-06-05 | M238: 05:29:38.744 | N238: 21:42:42.774 | O238: 155 | P238: 20:56:24.082 | Q238: 5.13965696 | R238: 0 | S238: 5.13965696
C239: 06/06/2013 | D239: 04:03:56 | E239: 22:57:34.993 | F239: 5.105557517 | G239: 21455 | H239: =IF($B$10=1,IF(MATCH($L239,DATE(YEAR($L239),{1,4,11},1)-WEEKDAY(DATE(YEAR($L239),{1,4,11},7)))=2,1,0),0) -> 1 | I239: 20:57:34.993 | J239: 22:57:34.993 | K239: 02:03:55.913 | L239: 2013-06-06 | M239: 05:29:08.421 | N239: 21:43:35.983 | O239: 156 | P239: 20:57:34.993 | Q239: 5.105533282 | R239: 0 | S239: 5.105533282
C240: 06/07/2013 | D240: 04:03:08 | E240: 22:58:42.638 | F240: 5.073433949 | G240: 21523 | H240: =IF($B$10=1,IF(MATCH($L240,DATE(YEAR($L240),{1,4,11},1)-WEEKDAY(DATE(YEAR($L240),{1,4,11},7)))=2,1,0),0) -> 1 | I240: 20:58:42.638 | J240: 22:58:42.638 | K240: 02:03:08.038 | L240: 2013-06-07 | M240: 05:28:41.032 | N240: 21:44:26.837 | O240: 157 | P240: 20:58:42.638 | Q240: 5.073444406 | R240: 0 | S240: 5.073444406
C241: 06/08/2013 | D241: 04:02:24 | E241: 22:59:46.905 | F241: 5.043359823 | G241: 21587 | H241: =IF($B$10=1,IF(MATCH($L241,DATE(YEAR($L241),{1,4,11},1)-WEEKDAY(DATE(YEAR($L241),{1,4,11},7)))=2,1,0),0) -> 1 | I241: 20:59:46.905 | J241: 22:59:46.905 | K241: 02:02:24.309 | L241: 2013-06-08 | M241: 05:28:16.597 | N241: 21:45:15.276 | O241: 158 | P241: 20:59:46.905 | Q241: 5.043445601 | R241: 0 | S241: 5.043445601
C242: 06/09/2013 | D242: 04:01:45 | E242: 23:00:47.685 | F242: 5.015643018 | G242: 21648 | H242: =IF($B$10=1,IF(MATCH($L242,DATE(YEAR($L242),{1,4,11},1)-WEEKDAY(DATE(YEAR($L242),{1,4,11},7)))=2,1,0),0) -> 1 | I242: 21:00:47.685 | J242: 23:00:47.685 | K242: 02:01:44.808 | L242: 2013-06-09 | M242: 05:27:55.131 | N242: 21:46:01.243 | O242: 159 | P242: 21:00:47.685 | Q242: 5.01558979 | R242: 0 | S242: 5.01558979
C243: 06/10/2013 | D243: 04:01:10 | E243: 23:01:44.875 | F243: 4.990034722 | G243: 21705 | H243: =IF($B$10=1,IF(MATCH($L243,DATE(YEAR($L243),{1,4,11},1)-WEEKDAY(DATE(YEAR($L243),{1,4,11},7)))=2,1,0),0) -> 1 | I243: 21:01:44.875 | J243: 23:01:44.875 | K243: 02:01:09.613 | L243: 2013-06-10 | M243: 05:27:36.649 | N243: 21:46:44.682 | O243: 160 | P243: 21:01:44.875 | Q243: 4.989927214 | R243: 0 | S243: 4.989927214
C244: 06/11/2013 | D244: 04:00:39 | E244: 23:02:38.375 | F244: 4.966562612 | G244: 21758 | H244: =IF($B$10=1,IF(MATCH($L244,DATE(YEAR($L244),{1,4,11},1)-WEEKDAY(DATE(YEAR($L244),{1,4,11},7)))=2,1,0),0) -> 1 | I244: 21:02:38.375 | J244: 23:02:38.375 | K244: 02:00:38.793 | L244: 2013-06-11 | M244: 05:27:21.160 | N244: 21:47:25.539 | O244: 161 | P244: 21:02:38.375 | Q244: 4.966505105 | R244: 0 | S244: 4.966505105
C245: 06/12/2013 | D245: 04:00:12 | E245: 23:03:28.089 | F245: 4.945252928 | G245: 21808 | H245: =IF($B$10=1,IF(MATCH($L245,DATE(YEAR($L245),{1,4,11},1)-WEEKDAY(DATE(YEAR($L245),{1,4,11},7)))=2,1,0),0) -> 1 | I245: 21:03:28.089 | J245: 23:03:28.089 | K245: 02:00:12.412 | L245: 2013-06-12 | M245: 05:27:08.671 | N245: 21:48:03.763 | O245: 162 | P245: 21:03:28.089 | Q245: 4.94536736 | R245: 0 | S245: 4.94536736
C246: 06/13/2013 | D246: 03:59:51 | E246: 23:04:13.931 | F246: 4.926685881 | G246: 21854 | H246: =IF($B$10=1,IF(MATCH($L246,DATE(YEAR($L246),{1,4,11},1)-WEEKDAY(DATE(YEAR($L246),{1,4,11},7)))=2,1,0),0) -> 1 | I246: 21:04:13.931 | J246: 23:04:13.931 | K246: 01:59:50.526 | L246: 2013-06-13 | M246: 05:26:59.187 | N246: 21:48:39.304 | O246: 163 | P246: 21:04:13.931 | Q246: 4.926554231 | R246: 0 | S246: 4.926554231
C247: 06/14/2013 | D247: 03:59:33 | E247: 23:04:55.816 | F247: 4.910051073 | G247: 21896 | H247: =IF($B$10=1,IF(MATCH($L247,DATE(YEAR($L247),{1,4,11},1)-WEEKDAY(DATE(YEAR($L247),{1,4,11},7)))=2,1,0),0) -> 1 | I247: 21:04:55.816 | J247: 23:04:55.816 | K247: 01:59:33.183 | L247: 2013-06-14 | M247: 05:26:52.707 | N247: 21:49:12.118 | O247: 164 | P247: 21:04:55.816 | Q247: 4.910102025 | R247: 0 | S247: 4.910102025
C248: 06/15/2013 | D248: 03:59:20 | E248: 23:05:33.669 | F248: 4.895925149 | G248: 21934 | H248: =IF($B$10=1,IF(MATCH($L248,DATE(YEAR($L248),{1,4,11},1)-WEEKDAY(DATE(YEAR($L248),{1,4,11},7)))=2,1,0),0) -> 1 | I248: 21:05:33.669 | J248: 23:05:33.669 | K248: 01:59:20.424 | L248: 2013-06-15 | M248: 05:26:49.231 | N248: 21:49:42.159 | O248: 165 | P248: 21:05:33.669 | Q248: 4.896042836 | R248: 0 | S248: 4.896042836
C249: 06/16/2013 | D249: 03:59:12 | E249: 23:06:07.422 | F249: 4.884327233 | G249: 21967 | H249: =IF($B$10=1,IF(MATCH($L249,DATE(YEAR($L249),{1,4,11},1)-WEEKDAY(DATE(YEAR($L249),{1,4,11},7)))=2,1,0),0) -> 1 | I249: 21:06:07.422 | J249: 23:06:07.422 | K249: 01:59:12.277 | L249: 2013-06-16 | M249: 05:26:48.751 | N249: 21:50:09.387 | O249: 166 | P249: 21:06:07.422 | Q249: 4.88440429 | R249: 0 | S249: 4.88440429
C250: 06/17/2013 | D250: 03:59:09 | E250: 23:06:37.012 | F250: 4.875274377 | G250: 21997 | H250: =IF($B$10=1,IF(MATCH($L250,DATE(YEAR($L250),{1,4,11},1)-WEEKDAY(DATE(YEAR($L250),{1,4,11},7)))=2,1,0),0) -> 1 | I250: 21:06:37.012 | J250: 23:06:37.012 | K250: 01:59:08.766 | L250: 2013-06-17 | M250: 05:26:51.260 | N250: 21:50:33.765 | O250: 167 | P250: 21:06:37.012 | Q250: 4.875209326 | R250: 0 | S250: 4.875209326
C251: 06/18/2013 | D251: 03:59:10 | E251: 23:07:02.387 | F251: 4.868503698 | G251: 22022 | H251: =IF($B$10=1,IF(MATCH($L251,DATE(YEAR($L251),{1,4,11},1)-WEEKDAY(DATE(YEAR($L251),{1,4,11},7)))=2,1,0),0) -> 1 | I251: 21:07:02.387 | J251: 23:07:02.387 | K251: 01:59:09.900 | L251: 2013-06-18 | M251: 05:26:56.744 | N251: 21:50:55.257 | O251: 168 | P251: 21:07:02.387 | Q251: 4.868476013 | R251: 0 | S251: 4.868476013
C252: 06/19/2013 | D252: 03:59:16 | E252: 23:07:23.500 | F252: 4.864305631 | G252: 22043 | H252: =IF($B$10=1,IF(MATCH($L252,DATE(YEAR($L252),{1,4,11},1)-WEEKDAY(DATE(YEAR($L252),{1,4,11},7)))=2,1,0),0) -> 1 | I252: 21:07:23.500 | J252: 23:07:23.500 | K252: 01:59:15.682 | L252: 2013-06-19 | M252: 05:27:05.187 | N252: 21:51:13.833 | O252: 169 | P252: 21:07:23.500 | Q252: 4.8642174 | R252: 0 | S252: 4.8642174
... 1695 more rows

Sheet solar_position
A1: Calculation of solar azimuth and elevation based on the calculation procedure by NOAA (http://www.srrb.noaa.gov/highlights/sunrise/azel.html)
A3: Input
A4: latitude in decimal degrees (positive in northern hemisphere) | B4: =47+36/60 -> 47.6
A5: longitude in decimal degrees (negative for western hemisphere) | B5: =-122-19/60 -> -122.3166667
A6: year | B6: 2001
A7: month | B7: 6
A8: day | B8: 21
A9: hours | B9: 13
A10: minutes | B10: 11
A11: seconds | B11: 0
A12: time zone in hours relative to GMT/UTC (PST= -8, MST= -7, CST= -6, EST= -5) | B12: -8
A13: daylight savings time (no= 0, yes= 1) | B13: 1
A15: Output
A16: solar azimuth (degrees clockwise from north) | B16: =solarazimuth(B4,B5,B6,B7,B8,B9,B10,B11,B12,B13) -> 179.9336529
A17: solar elevation (degrees from horizon) | B17: =solarelevation(B4,B5,B6,B7,B8,B9,B10,B11,B12,B13) -> 65.84507751
